{"text_format":"2","workbook":"xlsx","n_sheets":7,"sheets":["港口基础信息","港口经营人信息","港口建设管理流程","港口经营许可管理流程","监督检查管理流程","港口运行统计与分析","公共服务信息管理"],"not_rendered":{"charts":0,"images":0,"macros":0,"external_links":0,"defined_names":6,"comments":0,"pivot_tables":0},"unopened":[],"bounds":{"document_bytes":16777216,"sheet_cells":100000,"run_cost":"one","rows_first":2000,"rows_last":500,"rows_between":2000,"halvings":0,"cell_chars":16384,"cell_head_chars":4096},"cells_cut":0,"cells_raw":0,"read":"whole","date_system":"1900"}

{"sheet":"港口基础信息","index":0,"n_rows":54,"n_cols":12,"rows_kept":54,"cut":false,"hidden":false,"merged":[[0,1,0,2],[0,3,0,4],[1,1,1,2],[1,3,1,4],[4,1,53,1],[4,2,7,2],[8,2,11,2],[12,2,17,2],[18,2,23,2],[24,2,29,2],[30,2,35,2],[36,2,41,2],[42,2,47,2],[48,2,53,2]]}
["编号","场景",null,"概要"]
["M01","港口基础信息管理"]
[]
["编号","测试功能","测试对象","环境和数据条件","操作步骤","测试分支","分支明细","预想结果","判定履历","担当者","最新結果","BUG票ID"]
[{"$f":"A$2&\"_\"&\"UC0\"&(ROW()-4)","v":"M01_UC01"},"港口基础信息","行政管理单位信息","1、登录用户：地市级港口行政管理部门管理员","用户登录->建设与经营管理子系统->港口基础信息管理->行政单位信息管理",null,null,"进入行政单位信息管理页面","2016/10/21 OK","杜青蔚",{"$f":"RIGHTB(I5,2)","v":"OK"}]
[{"$f":"A$2&\"_\"&\"UC0\"&(ROW()-4)","v":"M01_UC02"},null,null,null,"1. 新增维护辖区行政管理部门信息",null,null,"保存成功，页面刷新","2016/10/21 OK","杜青蔚",{"$f":"RIGHTB(I6,2)","v":"OK"}]
["M01_UC03",null,null,"2、登录用户：省级港口行政管理部门管理员","用户登录->建设与经营管理子系统->港口基础信息管理->行政单位信息管理",null,null,"进入行政单位信息管理页面","2016/10/21 OK","杜青蔚","OK"]
["M01_UC04",null,null,null,"1. 新增维护辖区行政管理部门信息",null,null,"保存成功，页面刷新","2016/10/21 OK","杜青蔚","OK"]
["M01_UC05",null,"行政管理人员信息","1、登录用户：地市级港口行政管理人员\n","用户登录->建设与经营管理子系统->港口基础信息->行政管理人员信息",null,null,"进入行政管理人员信息页面","2016/10/21 OK","杜青蔚","OK"]
["M01_UC06",null,null,null,"1. 新增维护辖区行政管理人员信息",null,null,"保存成功，页面刷新","2016/10/21 OK","杜青蔚","OK"]
["M01_UC07",null,null,"2、登录用户：省级港口行政管理人员\n","用户登录->建设与经营管理子系统->港口基础信息->行政管理人员信息",null,null,"进入行政管理人员信息页面","2016/10/21 OK","杜青蔚","OK"]
["M01_UC08",null,null,null,"1. 新增维护辖区行政管理人员信息",null,null,"保存成功，页面刷新","2016/10/21 OK","杜青蔚","OK"]
["M01_UC09",null,"港口管理","1、登录用户：地市级港口管理人员\n","用户登录->建设与经营管理子系统->港口基础信息管理->港口管理",null,null,"进入港口管理页面","2016/10/24 OK","杜青蔚","OK"]
["M01_UC010",null,null,null,"1. 新增维护辖区港口信息",null,null,"保存成功，页面刷新","2016/10/24 OK","杜青蔚","OK"]
["M01_UC011",null,null,null,"2. 根据指定条件（单个或组合条件），完成查询功能",null,null,"查询出正确的结果集","2016/10/24 OK","杜青蔚","OK"]
["M01_UC012",null,null,"2、登录用户：省级港口管理人员\n","用户登录->建设与经营管理子系统->港口基础信息管理->港口管理",null,null,"进入港口管理页面","2016/10/24 OK","杜青蔚",{"$f":"RIGHTB(I16,2)","v":"OK"}]
["M01_UC013",null,null,null,"1. 新增维护辖区港口管理",null,null,"保存成功，页面刷新","2016/10/24 OK","杜青蔚","OK"]
["M01_UC014",null,null,null,"2. 根据指定条件（单个或组合条件），完成查询功能",null,null,"数据同步后，查询出正确的结果集","2016/10/24 OK","杜青蔚","OK"]
["M01_UC015",null,"港区管理","1、登录用户：地市级港口管理人员\n","用户登录->建设与经营管理子系统->港口基础信息管理->港区管理",null,null,"进入港区管理页面","2016/10/24 OK","杜青蔚","OK"]
["M01_UC016",null,null,null,"1. 新增维护辖区港区信息",null,null,"保存成功，页面刷新","2016/10/24 OK","杜青蔚","OK"]
["M01_UC017",null,null,null,"2. 根据指定条件（单个或组合条件），完成查询功能",null,null,"查询出正确的结果集","2016/10/24 OK","杜青蔚","OK"]
["M01_UC018",null,null,"2、登录用户：省级港口管理人员\n","用户登录->建设与经营管理子系统->港口基础信息管理->港区管理",null,null,"进入港区管理页面","2016/10/24 OK","杜青蔚",{"$f":"RIGHTB(I22,2)","v":"OK"}]
["M01_UC019",null,null,null,"1. 新增维护辖区港区管理",null,null,"保存成功，页面刷新","2016/10/24 OK","杜青蔚","OK"]
["M01_UC020",null,null,null,"2. 根据指定条件（单个或组合条件），完成查询功能",null,null,"数据同步后，查询出正确的结果集","2016/10/24 OK","杜青蔚",{"$f":"RIGHTB(I24,2)","v":"OK"}]
["M01_UC021",null,"作业区管理","1、登录用户：地市级港口管理人员\n","用户登录->建设与经营管理子系统->港口基础信息管理->作业区管理",null,null,"进入作业区管理页面","2016/10/24 OK","杜青蔚","OK"]
["M01_UC022",null,null,null,"1. 新增维护辖区作业区信息",null,null,"保存成功，页面刷新","2016/10/24 OK","杜青蔚","OK"]
["M01_UC023",null,null,null,"2. 根据指定条件（单个或组合条件），完成查询功能",null,null,"查询出正确的结果集","2016/10/24 OK","杜青蔚","OK"]
[null,null,null,"2、登录用户：省级港口管理人员\n","用户登录->建设与经营管理子系统->港口基础信息管理->作业区管理",null,null,"进入作业区管理页面","2016/10/24 OK","杜青蔚",{"$f":"RIGHTB(I28,2)","v":"OK"}]
["M01_UC025",null,null,null,"1. 新增维护辖区作业区管理",null,null,"保存成功，页面刷新","2016/11/01 OK","杜青蔚","OK"]
["M01_UC026",null,null,null,"2. 根据指定条件（单个或组合条件），完成查询功能",null,null,"数据同步后，查询出正确的结果集","2016/11/01 OK","杜青蔚","OK"]
["M01_UC027",null,"锚地管理","1、登录用户：地市级港口管理人员\n","用户登录->建设与经营管理子系统->港口基础信息管理->锚地管理",null,null,"进入锚地管理页面","2016/10/24 OK","杜青蔚","OK"]
["M01_UC028",null,null,null,"1. 新增维护辖区锚地信息（包括从其他系统数据库获取的数据）",null,null,"保存成功，页面刷新","2016/10/24 OK","杜青蔚","OK"]
["M01_UC029",null,null,null,"2. 根据指定条件（单个或组合条件），完成查询功能",null,null,"查询出正确的结果集","2016/10/24 OK","杜青蔚","OK"]
["M01_UC030",null,null,"2、登录用户：省级港口管理人员\n","用户登录->建设与经营管理子系统->港口基础信息管理->锚地管理",null,null,"进入锚地管理页面","2016/10/24 OK","杜青蔚",{"$f":"RIGHTB(I34,2)","v":"OK"}]
["M01_UC031",null,null,null,"1. 新增维护辖区锚地管理",null,null,"保存成功，页面刷新","2016/11/01 OK","杜青蔚",{"$f":"RIGHTB(I35,2)","v":"OK"}]
["M01_UC032",null,null,null,"2. 根据指定条件（单个或组合条件），完成查询功能",null,null,"数据同步后，查询出正确的结果集","2016/11/01 OK","杜青蔚",{"$f":"RIGHTB(I36,2)","v":"OK"}]
["M01_UC033",null,"岸线管理","1、登录用户：地市级港口管理人员\n","用户登录->建设与经营管理子系统->港口基础信息管理->岸线管理",null,null,"进入岸线管理页面","2016/10/24 OK","杜青蔚",{"$f":"RIGHTB(I37,2)","v":"OK"}]
["M01_UC034",null,null,null,"1. 新增维护辖区岸线信息（包括从其他系统数据库获取的数据）",null,null,"保存成功，页面刷新","2016/10/24 OK","杜青蔚","OK"]
["M01_UC035",null,null,null,"2. 根据指定条件（单个或组合条件），完成查询功能",null,null,"查询出正确的结果集","2016/10/24 OK","杜青蔚","OK"]
["M01_UC036",null,null,"2、登录用户：省级港口管理人员\n","用户登录->建设与经营管理子系统->港口基础信息管理->岸线管理",null,null,"进入岸线管理页面","2016/10/24 OK","杜青蔚",{"$f":"RIGHTB(I40,2)","v":"OK"}]
["M01_UC037",null,null,null,"1. 新增维护辖区岸线管理",null,null,"保存成功，页面刷新","2016/10/24 OK","杜青蔚","OK"]
["M01_UC038",null,null,null,"2. 根据指定条件（单个或组合条件），完成查询功能",null,null,"数据同步后，查询出正确的结果集","2016/11/22 OK","杜青蔚","OK"]
["M01_UC039",null,"防波堤管理","1、登录用户：地市级港口管理人员\n","用户登录->建设与经营管理子系统->港口基础信息管理->防波堤管理",null,null,"进入防波堤管理页面","2016/10/25 OK","杜青蔚","OK"]
["M01_UC040",null,null,null,"1. 新增维护辖区防波堤信息（包括从其他系统数据库获取的数据）",null,null,"保存成功，页面刷新","2016/10/25 OK","杜青蔚","OK"]
["M01_UC041",null,null,null,"2. 根据指定条件（单个或组合条件），完成查询功能",null,null,"查询出正确的结果集","2016/10/25 OK","杜青蔚","OK"]
["M01_UC042",null,null,"2、登录用户：省级港口管理人员\n","用户登录->建设与经营管理子系统->港口基础信息管理->防波堤管理",null,null,"进入防波堤管理页面","2016/10/25 OK","杜青蔚",{"$f":"RIGHTB(I46,2)","v":"OK"}]
["M01_UC043",null,null,null,"1. 新增维护辖区防波堤管理",null,null,"保存成功，页面刷新","2016/10/25 OK","杜青蔚","OK"]
["M01_UC044",null,null,null,"2. 根据指定条件（单个或组合条件），完成查询功能",null,null,"数据同步后，查询出正确的结果集","2016/11/01 OK","杜青蔚","OK"]
["M01_UC045",null,"进港航道管理","1、登录用户：地市级港口管理人员\n","用户登录->建设与经营管理子系统->港口基础信息管理->进港航道管理",null,null,"进入进港航道管理页面","2016/10/25 OK","杜青蔚","OK"]
["M01_UC046",null,null,null,"1. 新增维护辖区进港航道信息（包括从其他系统数据库获取的数据）",null,null,"保存成功，页面刷新","2016/10/25 OK","杜青蔚","OK"]
["M01_UC047",null,null,null,"2. 根据指定条件（单个或组合条件），完成查询功能",null,null,"查询出正确的结果集","2016/10/25 OK","杜青蔚","OK"]
["M01_UC048",null,null,"2、登录用户：省级港口管理人员\n","用户登录->建设与经营管理子系统->港口基础信息管理->进港航道管理",null,null,"进入进港航道管理页面","2016/10/25 OK","杜青蔚",{"$f":"RIGHTB(I52,2)","v":"OK"}]
["M01_UC049",null,null,null,"1. 新增维护辖区进港航道管理",null,null,"保存成功，页面刷新","2016/11/02 OK","杜青蔚","OK"]
["M01_UC050",null,null,null,"2. 根据指定条件（单个或组合条件），完成查询功能",null,null,"数据同步后，查询出正确的结果集","2016/11/02 OK","杜青蔚",{"$f":"RIGHTB(I54,2)","v":"OK"}]

{"sheet":"港口经营人信息","index":1,"n_rows":70,"n_cols":12,"rows_kept":70,"cut":false,"hidden":false,"merged":[[0,1,0,2],[0,3,0,4],[1,1,1,2],[1,3,1,4],[4,2,9,2],[58,2,63,2],[64,2,69,2],[4,1,69,1],[34,2,39,2],[40,2,45,2],[46,2,51,2],[52,2,57,2],[10,2,15,2],[16,2,21,2],[22,2,27,2],[28,2,33,2]]}
["编号","场景",null,"概要"]
["M02","港口经营人信息管理"]
[]
["编号","测试功能","测试对象","环境和数据条件","操作步骤","测试分支","分支明细","预想结果","判定履历","担当者","最新結果","BUG票ID"]
[{"$f":"A$2&\"_\"&\"UC0\"&(ROW()-4)","v":"M02_UC01"},"港口经营人信息","经营人基本信息","1、登录用户：地市级港口行政管理部门管理员","用户登录->建设与经营管理子系统->港口经营管理->港口经营人信息管理->经营人基本信息",null,null,"进入经营人基本信息页面","2016/10/20 OK","杜青蔚",{"$f":"RIGHTB(I5,2)","v":"OK"}]
[{"$f":"A$2&\"_\"&\"UC0\"&(ROW()-4)","v":"M02_UC02"},null,null,null,"1. 新增维护辖区经营人基本信息",null,null,"保存成功，页面刷新","2016/10/20 OK","杜青蔚",{"$f":"RIGHTB(I6,2)","v":"OK"}]
["M02_UC03",null,null,null,"2. 根据指定条件（单个或组合条件），完成查询功能",null,null,"查询出正确的结果集","2016/10/20 OK","杜青蔚",{"$f":"RIGHTB(I7,2)","v":"OK"}]
["M02_UC04",null,null,"2、登录用户：省级港口行政管理部门管理员","用户登录->建设与经营管理子系统->港口经营管理->港口经营人信息管理->经营人基本信息",null,null,"进入经营人基本信息页面","2016/10/20 OK","杜青蔚",{"$f":"RIGHTB(I8,2)","v":"OK"}]
["M02_UC05",null,null,null,"1. 新增维护经营人基本信息",null,null,"保存成功，页面刷新","2016/11/21 OK","杜青蔚","OK"]
["M02_UC06",null,null,null,"2. 根据指定条件（单个或组合条件），完成查询功能",null,null,"数据同步后，查询出正确的结果集","2016/11/21 OK","杜青蔚","OK"]
["M02_UC07",null,"许可证信息","1、登录用户：地市级港口行政管理人员","用户登录->建设与经营管理子系统->港口经营管理->港口经营人信息管理->许可证信息",null,null,"进入许可证信息页面","2016/10/21 OK","杜青蔚","OK"]
["M02_UC08",null,null,null,"1. 新增维护辖区许可证信息",null,null,"保存成功，页面刷新","2016/10/21 OK","杜青蔚","OK"]
["M02_UC09",null,null,null,"2. 根据指定条件（单个或组合条件），完成查询功能",null,null,"查询出正确的结果集","2016/10/21 OK","杜青蔚",{"$f":"RIGHTB(I13,2)","v":"OK"}]
["M02_UC010",null,null,"2、登录用户：省级港口行政管理人员","用户登录->建设与经营管理子系统->港口经营管理->港口经营人信息管理->许可证信息",null,null,"进入许可证信息页面","2016/10/21 OK","杜青蔚",{"$f":"RIGHTB(I14,2)","v":"OK"}]
["M02_UC011",null,null,null,"1. 新增维护辖区许可证信息",null,null,"保存成功，页面刷新","2016/11/21 OK","杜青蔚","OK"]
["M02_UC012",null,null,null,"2. 根据指定条件（单个或组合条件），完成查询功能",null,null,"数据同步后，查询出正确的结果集","2016/11/21 OK","杜青蔚","OK"]
["M02_UC013",null,"许可证附证","1、登录用户：地市级港口管理人员","用户登录->建设与经营管理子系统->港口经营管理->港口经营人信息管理->许可证附证",null,null,"进入许可证附证页面","2016/10/21 OK","杜青蔚","OK"]
["M02_UC014",null,null,null,"1. 查询许可证附证信息",null,null,"可以成功查询","2016/10/21 OK","杜青蔚","OK"]
["M02_UC015",null,null,null,"2. 与所在地的经营管理系统进行对接获取数据",null,null,"数据获取成功，并可正常维护","2016/10/21 OK","杜青蔚","OK"]
["M02_UC016",null,null,"2、登录用户：省级港口管理人员","用户登录->建设与经营管理子系统->港口经营管理->港口经营人信息管理->许可证附证",null,null,"进入许可证附证页面","2016/11/22 OK","杜青蔚",{"$f":"RIGHTB(I20,2)","v":"OK"}]
["M02_UC017",null,null,null,"1. 查询许可证附证信息",null,null,"可以成功查询","2016/11/22 OK","杜青蔚","OK"]
["M02_UC018",null,null,null,"2. 根据指定条件（单个或组合条件），完成查询功能",null,null,"数据同步后，查询出正确的结果集","2016/11/22 OK","杜青蔚","OK"]
["M02_UC019",null,"码头信息","1、登录用户：地市级港口管理人员","用户登录->建设与经营管理子系统->港口经营管理->港口经营人信息管理->码头信息",null,null,"进入码头信息页面","2016/10/21 OK","杜青蔚","OK"]
["M02_UC020",null,null,null,"1. 新增维护辖区码头信息",null,null,"保存成功，页面刷新","2016/10/21 OK","杜青蔚","OK"]
["M02_UC021",null,null,null,"2. 根据指定条件（单个或组合条件），完成查询功能",null,null,"查询出正确的结果集","2016/10/21 OK","杜青蔚","OK"]
["M02_UC022",null,null,"2、登录用户：省级港口管理人员","用户登录->建设与经营管理子系统->港口经营管理->港口经营人信息管理->码头信息",null,null,"进入码头信息页面","2016/10/21 OK","杜青蔚",{"$f":"RIGHTB(I26,2)","v":"OK"}]
["M02_UC023",null,null,null,"1. 新增维护辖区码头信息",null,null,"保存成功，页面刷新","2016/11/21 OK","杜青蔚","OK"]
["M02_UC024",null,null,null,"2. 根据指定条件（单个或组合条件），完成查询功能",null,null,"数据同步后，查询出正确的结果集","2016/11/21 OK","杜青蔚","OK"]
["M02_UC025",null,"泊位信息","1、登录用户：地市级港口管理人员","用户登录->建设与经营管理子系统->港口经营管理->港口经营人信息管理->泊位信息",null,null,"进入泊位信息页面","2016/10/21 OK","杜青蔚","OK"]
["M02_UC026",null,null,null,"1. 新增维护辖区泊位信息",null,null,"保存成功，页面刷新","2016/10/21 OK","杜青蔚","OK"]
["M02_UC027",null,null,null,"2. 根据指定条件（单个或组合条件），完成查询功能",null,null,"查询出正确的结果集","2016/10/21 OK","杜青蔚","OK"]
["M02_UC028",null,null,"2、登录用户：省级港口管理人员","用户登录->建设与经营管理子系统->港口经营管理->港口经营人信息管理->泊位信息",null,null,"进入泊位信息页面","2016/10/21 OK","杜青蔚",{"$f":"RIGHTB(I32,2)","v":"OK"}]
["M02_UC029",null,null,null,"1. 新增维护辖区泊位信息",null,null,"保存成功，页面刷新","2016/11/22 OK","杜青蔚","OK"]
["M02_UC030",null,null,null,"2. 根据指定条件（单个或组合条件），完成查询功能",null,null,"数据同步后，查询出正确的结果集","2016/11/22 OK","杜青蔚","OK"]
["M02_UC031",null,"储罐信息","1、登录用户：地市级港口管理人员","用户登录->建设与经营管理子系统->港口经营管理->港口经营人信息管理->储罐信息",null,null,"进入储罐信息页面","2016/10/21 OK","杜青蔚","OK"]
["M02_UC032",null,null,null,"1. 新增维护辖区储罐信息",null,null,"保存成功，页面刷新","2016/10/21 OK","杜青蔚","OK"]
["M02_UC033",null,null,null,"2. 根据指定条件（单个或组合条件），完成查询功能",null,null,"查询出正确的结果集","2016/10/21 OK","杜青蔚","OK"]
["M02_UC034",null,null,"2、登录用户：省级港口管理人员","用户登录->建设与经营管理子系统->港口经营管理->港口经营人信息管理->储罐信息",null,null,"进入储罐信息页面","2016/10/21 OK","杜青蔚",{"$f":"RIGHTB(I38,2)","v":"OK"}]
["M02_UC035",null,null,null,"1. 新增维护辖区储罐信息",null,null,"保存成功，页面刷新","2016/11/22 OK","杜青蔚",{"$f":"RIGHTB(I45,2)","v":"OK"}]
["M02_UC036",null,null,null,"2. 根据指定条件（单个或组合条件），完成查询功能",null,null,"数据同步后，查询出正确的结果集","2016/11/22 OK","杜青蔚",{"$f":"RIGHTB(I46,2)","v":"OK"}]
["M02_UC037",null,"仓库信息","1、登录用户：地市级港口管理人员","用户登录->建设与经营管理子系统->港口经营管理->港口经营人信息管理->仓库信息",null,null,"进入仓库信息页面","2016/10/21 OK","杜青蔚","OK"]
["M02_UC038",null,null,null,"1. 新增维护辖区仓库信息",null,null,"保存成功，页面刷新","2016/10/21 OK","杜青蔚","OK"]
["M02_UC039",null,null,null,"2. 根据指定条件（单个或组合条件），完成查询功能",null,null,"查询出正确的结果集","2016/10/21 OK","杜青蔚","OK"]
["M02_UC040",null,null,"2、登录用户：省级港口管理人员","用户登录->建设与经营管理子系统->港口经营管理->港口经营人信息管理->仓库信息",null,null,"进入仓库信息页面","2016/10/21 OK","杜青蔚",{"$f":"RIGHTB(I44,2)","v":"OK"}]
["M02_UC041",null,null,null,"1. 新增维护辖区仓库信息",null,null,"保存成功，页面刷新","2016/11/21 OK","杜青蔚","OK"]
["M02_UC042",null,null,null,"2. 根据指定条件（单个或组合条件），完成查询功能",null,null,"数据同步后，查询出正确的结果集","2016/11/21 OK","杜青蔚","OK"]
["M02_UC043",null,"堆场信息","1、登录用户：地市级港口管理人员","用户登录->建设与经营管理子系统->港口经营管理->港口经营人信息管理->堆场信息",null,null,"进入堆场信息页面","2016/10/21 OK","杜青蔚","OK"]
["M02_UC044",null,null,null,"1. 新增维护辖区堆场信息",null,null,"保存成功，页面刷新","2016/10/21 OK","杜青蔚","OK"]
["M02_UC045",null,null,null,"2. 根据指定条件（单个或组合条件），完成查询功能",null,null,"查询出正确的结果集","2016/10/21 OK","杜青蔚","OK"]
["M02_UC046",null,null,"2、登录用户：省级港口管理人员","用户登录->建设与经营管理子系统->港口经营管理->港口经营人信息管理->堆场信息",null,null,"进入堆场信息页面","2016/10/21 OK","杜青蔚",{"$f":"RIGHTB(I50,2)","v":"OK"}]
["M02_UC047",null,null,null,"1. 新增维护辖区堆场信息",null,null,"保存成功，页面刷新","2016/11/21 OK","杜青蔚","OK"]
["M02_UC048",null,null,null,"2. 根据指定条件（单个或组合条件），完成查询功能",null,null,"数据同步后，查询出正确的结果集","2016/11/21 OK","杜青蔚","OK"]
["M02_UC049",null,"人员及持证信息","1、登录用户：地市级港口管理人员","用户登录->建设与经营管理子系统->港口经营管理->港口经营人信息管理->人员及持证信息",null,null,"进入人员及持证信息页面","2016/11/02 OK","杜青蔚","OK"]
["M02_UC050",null,null,null,"1. 新增维护辖区人员及持证信息",null,null,"保存成功，页面刷新","2016/11/02 OK","杜青蔚","OK"]
["M02_UC051",null,null,null,"2. 根据指定条件（单个或组合条件），完成查询功能",null,null,"查询出正确的结果集","2016/11/02 OK","杜青蔚","OK"]
["M02_UC052",null,null,"2、登录用户：省级港口管理人员","用户登录->建设与经营管理子系统->港口经营管理->港口经营人信息管理->人员及持证信息",null,null,"进入人员及持证信息页面","2016/11/02 OK","杜青蔚",{"$f":"RIGHTB(I56,2)","v":"OK"}]
["M02_UC053",null,null,null,"1. 新增维护辖区人员及持证信息",null,null,"保存成功，页面刷新","2016/11/22 OK","杜青蔚","OK"]
["M02_UC054",null,null,null,"2. 根据指定条件（单个或组合条件），完成查询功能",null,null,"数据同步后，查询出正确的结果集","2016/11/22 OK","杜青蔚","OK"]
["M02_UC055",null,"设施设备信息","1、登录用户：地市级港口管理人员","用户登录->建设与经营管理子系统->港口经营管理->港口经营人信息管理->设施设备信息",null,null,"进入设施设备信息页面","2016/11/02 OK","杜青蔚","OK"]
["M02_UC056",null,null,null,"1. 新增维护辖区设施设备信息",null,null,"保存成功，页面刷新","2016/11/02 OK","杜青蔚","OK"]
["M02_UC057",null,null,null,"2. 根据指定条件（单个或组合条件），完成查询功能",null,null,"查询出正确的结果集","2016/11/02 OK","杜青蔚","OK"]
["M02_UC058",null,null,"2、登录用户：省级港口管理人员","用户登录->建设与经营管理子系统->港口经营管理->港口经营人信息管理->设施设备信息",null,null,"进入设施设备信息页面","2016/11/02 OK","杜青蔚",{"$f":"RIGHTB(I62,2)","v":"OK"}]
["M02_UC059",null,null,null,"1. 新增维护辖区设施设备信息",null,null,"保存成功，页面刷新","2016/11/22 OK","杜青蔚","OK"]
["M02_UC060",null,null,null,"2. 根据指定条件（单个或组合条件），完成查询功能",null,null,"数据同步后，查询出正确的结果集","2016/11/22 OK","杜青蔚","OK"]
["M02_UC061",null,"企业投资信息","1、登录用户：地市级港口管理人员","用户登录->建设与经营管理子系统->港口经营管理->港口经营人信息管理->企业投资信息",null,null,"进入企业投资信息页面","2016/11/02 OK","杜青蔚","OK"]
["M02_UC062",null,null,null,"1. 新增维护辖区企业投资信息",null,null,"保存成功，页面刷新","2016/11/02 OK","杜青蔚","OK"]
["M02_UC063",null,null,null,"2. 根据指定条件（单个或组合条件），完成查询功能",null,null,"查询出正确的结果集","2016/11/02 OK","杜青蔚","OK"]
["M02_UC064",null,null,"2、登录用户：省级港口管理人员","用户登录->建设与经营管理子系统->港口经营管理->港口经营人信息管理->企业投资信息",null,null,"进入企业投资信息页面","2016/11/02 OK","杜青蔚",{"$f":"RIGHTB(I68,2)","v":"OK"}]
["M02_UC065",null,null,null,"1.根据指定条件（单个或组合条件），完成查询功能",null,null,"数据同步后，查询出正确的结果集","2016/11/22 OK","杜青蔚","OK"]
["M02_UC066",null,null,null,"2. 根据指定条件（单个或组合条件），完成查询功能",null,null,"数据同步后，查询出正确的结果集","2016/11/22 OK","杜青蔚","OK"]

{"sheet":"港口建设管理流程","index":2,"n_rows":156,"n_cols":12,"rows_kept":156,"cut":false,"hidden":false,"merged":[[73,2,99,2],[4,1,155,1],[128,2,155,2],[100,2,127,2],[14,2,70,2],[4,2,13,2],[0,1,0,2],[0,3,0,4],[1,1,1,2],[1,3,1,4],[71,2,72,2]]}
["编号","场景",null,"概要",{"$nulls":4},"前提"]
["M03","港口建设管理",null,"1、新建项目\n2、项目建设进度管理流程",{"$nulls":4},"关联画面及功能正常"]
[]
["编号","测试功能","测试对象","环境和数据条件","操作步骤","测试分支","分支明细","预想结果","判定履历","担当者","最新結果","BUG票ID"]
[{"$f":"A$2&\"_\"&\"UC0\"&(ROW()-4)","v":"M03_UC01"},"港口建设管理","项目信息管理","1、登录用户：港口经营人","用户登录->建设与经营管理子系统->港口建设管理->项目信息管理",null,null,"进入项目信息管理页面","2016/10/26 OK","杜青蔚",{"$f":"RIGHTB(I5,2)","v":"OK"}]
[{"$f":"A$2&\"_\"&\"UC0\"&(ROW()-4)","v":"M03_UC02"},null,null,null,"1.新增辖区内的项目信息",null,null,"保存成功，页面刷新","2016/10/26 OK","杜青蔚",{"$f":"RIGHTB(I6,2)","v":"OK"}]
["M03_UC03",null,null,null,"2.维护辖区内的项目信息",null,null,"维护成功，页面刷新","2016/10/26 OK","杜青蔚","OK"]
["M03_UC04",null,null,null,"3.根据指定条件（单个或组合条件），完成查询功能",null,null,"查询出正确的结果集","2016/10/26 OK","杜青蔚","OK"]
["M03_UC05",null,null,"2、登录用户：地市级港口行政管理部门管理员","用户登录->建设与经营管理子系统->港口建设管理->项目信息管理",null,null,"进入项目信息管理页面","2016/10/26 OK","杜青蔚",{"$f":"RIGHTB(I9,2)","v":"OK"}]
["M03_UC06",null,null,null,"1.新增辖区内的项目信息",null,null,"保存成功，页面刷新","2016/10/26 OK","杜青蔚","OK"]
["M03_UC07",null,null,null,"2.维护辖区内的项目信息",null,null,"维护成功，页面刷新","2016/10/26 OK","杜青蔚","OK"]
["M03_UC08",null,null,null,"3.根据指定条件（单个或组合条件），完成查询功能",null,null,"查询出正确的结果集","2016/10/26 OK","杜青蔚","OK"]
["M03_UC09",null,null,"3、登录用户：省级港口行政管理人员","用户登录->建设与经营管理子系统->港口建设管理->项目信息管理",null,null,"进入项目信息管理页面","2016/11/21 OK","杜青蔚","OK"]
["M03_UC010",null,null,null,"1. 根据指定条件（单个或组合条件），完成查询功能",null,null,"数据同步后，查询出正确的结果集","2016/11/21 OK","杜青蔚","OK"]
["M03_UC011",null,"建设进度管理流程","1.登录用户：港口经营人","用户登录->建设与经营管理子系统->港口建设管理->建设进度管理","岸线利用审批",null,"进入建设进度管理页面","2016/10/26 OK","杜青蔚",{"$f":"RIGHTB(I15,2)","v":"OK"}]
["M03_UC012",null,null,null,"1.新增建设进度信息",null,null,"保存成功，页面刷新","2016/10/26 OK","杜青蔚","OK"]
["M03_UC013",null,null,null,"2.添加岸线利用审批文件材料",null,null,"添加成功","2016/10/26 OK","杜青蔚","OK"]
["M03_UC014",null,null,null,"3.提交","建设进度管理新增页面，点击【提交】按钮",null,"提交成功，办理按钮消失\n流程历史中显示提交的信息\n当前状态更新为岸线利用审批支撑文件审查","2016/10/26 OK","杜青蔚","OK"]
["M03_UC015",null,null,"2.登录用户：地市审查人员","用户登录->建设与经营管理子系统->港口建设管理->建设进度管理",null,null,"进入建设进度管理页面","2016/10/26 OK","杜青蔚","OK"]
["M03_UC016",null,null,null,"1.审查","建设进度记录后点击【办理】按钮",null,"进入建设进度办理页面","2016/10/26 OK","杜青蔚","OK"]
["M03_UC017",null,null,null,"3.退回","在建设进度办理页面填写审批意见，点击【退回】按钮",null,"退回成功，页面刷新，办理按钮消失\n流程历史中显示退回的信息","2016/10/26 OK","杜青蔚","OK"]
["M03_UC018",null,null,null,"4.同意","在建设进度办理页面填写审批意见，点击【同意】按钮",null,"通过成功，页面刷新，办理按钮消失\n流程历史中显示同意的信息\n出现项目审批核准备案项\n当前状态更新为项目审批、核准、备案支撑文件提交","2016/10/26 OK","杜青蔚","OK"]
["M03_UC019",null,null,"3.登录用户：港口经营人","用户登录->建设与经营管理子系统->港口建设管理->建设进度管理","项目审批、核准、备案",null,"进入建设进度管理页面","2016/10/26 OK","杜青蔚","OK"]
["M03_UC020",null,null,null,"1.添加项目审批、核准、备案支撑文件材料",null,null,"添加成功","2016/10/26 OK","杜青蔚","OK"]
["M03_UC021",null,null,null,"2.提交","建设进度管理办理页面，点击【提交】按钮",null,"提交成功，办理按钮消失\n流程历史中显示提交的信息\n当前状态更新为项目审批、核准、备案支撑文件审查","2016/10/26 OK","杜青蔚","OK"]
["M03_UC022",null,null,"4.登录用户：地市审查人员","用户登录->建设与经营管理子系统->港口建设管理->建设进度管理",null,null,"进入建设进度管理页面","2016/10/26 OK","杜青蔚","OK"]
["M03_UC023",null,null,null,"1.审查","建设进度记录后点击【办理】按钮",null,"进入建设进度办理页面","2016/10/26 OK","杜青蔚","OK"]
["M03_UC024",null,null,null,"2.退回","在建设进度办理页面填写审批意见，点击【退回】按钮",null,"退回成功，页面刷新，办理按钮消失\n流程历史中显示退回的信息","2016/10/27 OK","杜青蔚","OK"]
["M03_UC025",null,null,null,"3.同意","在建设进度办理页面填写审批意见，点击【同意】按钮",null,"通过成功，页面刷新，办理按钮消失\n流程历史中显示同意的信息\n出现初步设计审批项\n当前状态更新为初步设计审批支撑文件提交","2016/10/27 OK","杜青蔚","OK"]
["M03_UC026",null,null,"5.登录用户：港口经营人","用户登录->建设与经营管理子系统->港口建设管理->建设进度管理","初步设计审批",null,"进入建设进度管理页面","2016/10/27 OK","杜青蔚","OK"]
["M03_UC027",null,null,null,"1.添加初步设计文件、初步设计批复文件",null,null,"添加成功","2016/10/27 OK","杜青蔚","OK"]
["M03_UC028",null,null,null,"2.提交","建设进度管理办理页面，点击【提交】按钮",null,"提交成功，办理按钮消失\n流程历史中显示提交的信息\n当前状态更新为初步设计审批支撑文件审查","2016/10/27 OK","杜青蔚","OK"]
["M03_UC029",null,null,"6.登录用户：地市审查人员","用户登录->建设与经营管理子系统->港口建设管理->建设进度管理",null,null,"进入建设进度管理页面","2016/10/27 OK","杜青蔚","OK"]
["M03_UC030",null,null,null,"1.审查","建设进度记录后点击【办理】按钮",null,"进入建设进度办理页面","2016/10/27 OK","杜青蔚","OK"]
["M03_UC031",null,null,null,"2.退回","在建设进度办理页面填写审批意见，点击【退回】按钮",null,"退回成功，页面刷新，办理按钮消失\n流程历史中显示退回的信息","2016/10/27 OK","杜青蔚","OK"]
["M03_UC032",null,null,null,"3.同意","在建设进度办理页面填写审批意见，点击【同意】按钮",null,"通过成功，页面刷新，办理按钮消失\n流程历史中显示同意的信息\n出现施工图设计审批\n当前状态更新为施工图设计审批支撑文件提交","2016/10/27 OK","杜青蔚","OK"]
["M03_UC033",null,null,"7.登录用户：港口经营人","用户登录->建设与经营管理子系统->港口建设管理->建设进度管理","施工图设计审批",null,"进入建设进度管理页面","2016/10/27 OK","杜青蔚","OK"]
["M03_UC034",null,null,null,"1.添加施工图设计文件、施工图设计批复文件",null,null,"添加成功","2016/10/27 OK","杜青蔚","OK"]
["M03_UC035",null,null,null,"2.提交","建设进度管理办理页面，点击【提交】按钮",null,"提交成功，办理按钮消失\n流程历史中显示提交的信息\n当前状态更新为施工图设计审批文件审查","2016/10/27 OK","杜青蔚","OK"]
["M03_UC036",null,null,"8.登录用户：地市审查人员","用户登录->建设与经营管理子系统->港口建设管理->建设进度管理",null,null,"进入建设进度管理页面","2016/10/27 OK","杜青蔚","OK"]
["M03_UC037",null,null,null,"1.审查","建设进度记录后点击【办理】按钮",null,"进入建设进度办理页面","2016/10/27 OK","杜青蔚",{"$f":"RIGHTB(I41,2)","v":"OK"}]
["M03_UC038",null,null,null,"2.退回","在建设进度办理页面填写审批意见，点击【退回】按钮",null,"退回成功，页面刷新，办理按钮消失\n流程历史中显示退回的信息","2016/10/27 OK","杜青蔚","OK"]
["M03_UC039",null,null,null,"3.同意","在建设进度办理页面填写审批意见，点击【同意】按钮",null,"通过成功，页面刷新，办理按钮消失\n流程历史中显示同意的信息\n出现开工备案\n当前状态更新为开工备案支撑文件提交","2016/10/27 OK","杜青蔚","OK"]
["M03_UC040",null,null,"9.登录用户：港口经营人","用户登录->建设与经营管理子系统->港口建设管理->建设进度管理","开工备案",null,"进入建设进度管理页面","2016/10/27 OK","杜青蔚","OK"]
["M03_UC041",null,null,null,"1.添加控制性用地的批复(可选)、与施工单位和监理单位签订的合同复印件、质量监督手续材料复印件、建设资金落实证明复印件、评标结果备案文件复印件(可选)、《开工备案表》",null,null,"添加成功","2016/10/27 OK","杜青蔚","OK"]
["M03_UC042",null,null,null,"2.提交","建设进度管理办理页面，点击【提交】按钮",null,"提交成功，办理按钮消失\n流程历史中显示提交的信息\n当前状态更新为开工备案支撑文件审查","2016/10/27 OK","杜青蔚","OK"]
["M03_UC043",null,null,"10.登录用户：地市审查人员","用户登录->建设与经营管理子系统->港口建设管理->建设进度管理",null,null,"进入建设进度管理页面","2016/10/27 OK","杜青蔚","OK"]
["M03_UC044",null,null,null,"1.审查","建设进度记录后点击【办理】按钮",null,"进入建设进度办理页面","2016/10/27 OK","杜青蔚","OK"]
["M03_UC045",null,null,null,"2.退回","在建设进度办理页面填写审批意见，点击【退回】按钮",null,"退回成功，页面刷新，办理按钮消失\n流程历史中显示退回的信息","2016/10/27 OK","杜青蔚","OK"]
["M03_UC046",null,null,null,"3.同意","在建设进度办理页面填写审批意见，点击【同意】按钮",null,"通过成功，页面刷新，办理按钮消失\n流程历史中显示同意的信息\n出现交工验收\n当前状态更新为交工验收支撑文件提交","2016/10/27 OK","杜青蔚","OK"]
["M03_UC047",null,null,"11.登录用户：港口经营人","用户登录->建设与经营管理子系统->港口建设管理->建设进度管理","交工验收",null,"进入建设进度管理页面","2016/10/27 OK","杜青蔚","OK"]
["M03_UC048",null,null,null,"1.添加质监机构关于工程质量鉴定意见书、交工验收证书",null,null,"添加成功","2016/10/27 OK","杜青蔚","OK"]
["M03_UC049",null,null,null,"2.提交","建设进度管理办理页面，点击【提交】按钮",null,"提交成功，办理按钮消失\n流程历史中显示提交的信息\n当前状态更新为交工验收支撑文件审查","2016/10/27 OK","杜青蔚","OK"]
["M03_UC050",null,null,"12.登录用户：地市审查人员","用户登录->建设与经营管理子系统->港口建设管理->建设进度管理",null,null,"进入建设进度管理页面","2016/10/27 OK","杜青蔚","OK"]
["M03_UC051",null,null,null,"1.审查","建设进度记录后点击【办理】按钮",null,"进入建设进度办理页面","2016/10/27 OK","杜青蔚","OK"]
["M03_UC052",null,null,null,"2.退回","在建设进度办理页面填写审批意见，点击【退回】按钮",null,"退回成功，页面刷新，办理按钮消失\n流程历史中显示退回的信息","2016/10/27 OK","杜青蔚","OK"]
["M03_UC053",null,null,null,"3.同意","在建设进度办理页面填写审批意见，点击【同意】按钮",null,"通过成功，页面刷新，办理按钮消失\n流程历史中显示同意的信息\n出现试运行备案\n当前状态更新为试运行备案支撑文件提交","2016/10/27 OK","杜青蔚","OK"]
["M03_UC054",null,null,"13.登录用户：港口经营人","用户登录->建设与经营管理子系统->港口建设管理->建设进度管理","试运行备案",null,"进入建设进度管理页面","2016/10/27 OK","杜青蔚","OK"]
["M03_UC055",null,null,null,"1.添加环境保护、劳动安全卫生、消防主管部门关于试运行的准许意见",null,null,"添加成功","2016/10/27 OK","杜青蔚","OK"]
["M03_UC056",null,null,null,"2.提交","建设进度管理办理页面，点击【提交】按钮",null,"提交成功，办理按钮消失\n流程历史中显示提交的信息\n当前状态更新为试运行备案支撑文件审查","2016/10/27 OK","杜青蔚","OK"]
["M03_UC057",null,null,"14.登录用户：地市审查人员","用户登录->建设与经营管理子系统->港口建设管理->建设进度管理",null,null,"进入建设进度管理页面","2016/10/27 OK","杜青蔚","OK"]
["M03_UC058",null,null,null,"1.审查","建设进度记录后点击【办理】按钮",null,"进入建设进度办理页面","2016/10/27 OK","杜青蔚","OK"]
["M03_UC059",null,null,null,"2.退回","在建设进度办理页面填写审批意见，点击【退回】按钮",null,"退回成功，页面刷新，办理按钮消失\n流程历史中显示退回的信息","2016/10/27 OK","杜青蔚","OK"]
["M03_UC060",null,null,null,"3.同意","在建设进度办理页面填写审批意见，点击【同意】按钮",null,"通过成功，页面刷新，办理按钮消失\n流程历史中显示同意的信息\n出现竣工验收\n当前状态更新为竣工验收支撑文件提交","2016/10/27 OK","杜青蔚","OK"]
["M03_UC061",null,null,"15.登录用户：港口经营人","用户登录->建设与经营管理子系统->港口建设管理->建设进度管理","竣工验收",null,"进入建设进度管理页面","2016/10/27 OK","杜青蔚","OK"]
["M03_UC062",null,null,null,"1.添加竣工资料汇编、竣工验收证书(多个，新码头，老码头改造)",null,null,"添加成功","2016/10/27 OK","杜青蔚","OK"]
["M03_UC063",null,null,null,"2.提交","建设进度管理办理页面，点击【提交】按钮",null,"提交成功，办理按钮消失\n流程历史中显示提交的信息\n当前状态更新为竣工验收支撑文件审查","2016/10/27 OK","杜青蔚","OK"]
["M03_UC064",null,null,"14.登录用户：地市审查人员","用户登录->建设与经营管理子系统->港口建设管理->建设进度管理",null,null,"进入建设进度管理页面","2016/10/27 OK","杜青蔚","OK"]
["M03_UC065",null,null,null,"1.审查","建设进度记录后点击【办理】按钮",null,"进入建设进度办理页面","2016/10/27 OK","杜青蔚","OK"]
["M03_UC066",null,null,null,"2.退回","在建设进度办理页面填写审批意见，点击【退回】按钮",null,"退回成功，页面刷新，办理按钮消失\n流程历史中显示退回的信息","2016/10/27 OK","杜青蔚","OK"]
["M03_UC067",null,null,null,"3.同意","在建设进度办理页面填写审批意见，点击【同意】按钮",null,"通过成功，页面刷新，办理按钮消失\n流程历史中显示同意的信息\n当前状态更新为已完成","2016/10/27 OK","杜青蔚","OK"]
[{"$f":"A$2&\"_\"&\"UC0\"&(ROW()-4)","v":"M03_UC068"},null,"投资计划管理","1.登录用户：港口经营人","用户登录->建设与经营管理子系统->港口建设管理->投资计划管理",null,null,"进入投资计划管理页面","2016/10/27 OK","杜青蔚","OK"]
["M03_UC069",null,null,null,"1.新增投资计划信息",null,null,"保存成功，页面刷新\n建设进度管理页面中的实施过程项内容可查","2016/10/27 OK","杜青蔚","OK"]
["M03_UC070",null,"建设进度初步设计申请流程","1.登录用户：港口经营人","用户登录->建设与经营管理子系统->港口建设管理->建设进度初步设计申请",null,null,"进入建设进度初步设计申请页面","2016/10/27 OK","杜青蔚","OK"]
["M03_UC071",null,null,null,"1.新增建设进度初步设计申请",null,null,"保存成功，页面刷新","2016/10/27 OK","杜青蔚","OK"]
["M03_UC072",null,null,null,"2.添加港口建设项目初步设计审批申请文件、港口建设项目初步设计文件、港口建设项目批准或者核准、备案文件",null,null,"添加成功","2016/10/28 OK","杜青蔚","OK"]
["M03_UC073",null,null,null,"3.提交","建设进度初步设计申请页面，点击【提交】按钮",null,"提交成功，办理按钮消失\n出现需提交附件审查会议纪要、专家审查意见、对审查意见的答复、第三方审查咨询报告 （ 可选 ）、初步设计文件报批稿\n当前状态更新为审查\n审查栏显示提交人和当前日期","2016/10/28 OK","杜青蔚","OK"]
["M03_UC074",null,null,"2.登录用户：地市审查人员","用户登录->建设与经营管理子系统->港口建设管理->建设进度初步设计申请",null,null,"进入建设进度初步设计申请页面","2016/10/28 OK","杜青蔚","OK"]
["M03_UC075",null,null,null,"1.审查","建设进度初步设计申请记录后点击【办理】按钮",null,"进入建设进度初步设计申请办理页面","2016/10/28 OK","杜青蔚","OK"]
["M03_UC076",null,null,null,"2.退回","在建设进度初步设计申请办理页面填写审批意见，点击【退回】按钮",null,"退回成功，页面刷新，办理按钮消失\n流程状态变为申请\n建设进度初步设计申请办理页面出现申请栏内容","2016/10/28 OK","杜青蔚","OK"]
["M03_UC077",null,null,null,"3.意见","在建设进度初步设计申请办理页面点击【意见】按钮，填写审批意见",null,"审查栏显示审批意见","2016/10/28 OK","杜青蔚","OK"]
["M03_UC078",null,null,null,"4.转报省级","在建设进度初步设计申请办理页面点击【转报省级】按钮",null,"退回成功，页面刷新，办理按钮消失\n流程状态变为审请","2016/10/28 OK","杜青蔚","OK"]
["M03_UC079",null,null,"3.登录用户：省厅经办人","用户登录->建设与经营管理子系统->港口建设管理->建设进度初步设计申请",null,null,"进入建设进度初步设计申请页面","2016/10/28 OK","杜青蔚","OK"]
["M03_UC080",null,null,null,"1.审查","建设进度初步设计申请记录后点击【编辑】按钮",null,"进入建设进度初步设计申请编辑页面","2016/10/28 OK","杜青蔚","OK"]
["M03_UC081",null,null,null,"2.退回","在建设进度初步设计申请办理页面点击【退回】按钮",null,"退回成功，页面刷新，编辑按钮消失\n流程状态变为退回地市\n","2016/10/28 OK","杜青蔚","OK"]
["M03_UC082",null,null,null,"3.意见","在建设进度初步设计申请办理页面点击【意见】按钮，填写审批意见",null,"审查栏显示审批意见","2016/10/28 OK","杜青蔚","OK"]
["M03_UC083",null,null,null,"4.选择人员","在建设进度初步设计申请办理页面点击【选择人员】按钮，选择审批人员",null,"选择成功","2016/10/28 OK","杜青蔚","OK"]
["M03_UC084",null,null,null,"5.提交","在建设进度初步设计申请办理页面点击【提交】按钮",null,"提交成功，页面刷新，编辑按钮变成流程历史\n编辑页面中的领导办理栏中内容更新\n流程状态变为领导办理","2016/10/28 OK","杜青蔚",{"$f":"RIGHTB(I88,2)","v":"OK"}]
["M03_UC085",null,null,"4.登录用户：省厅领导","用户登录->建设与经营管理子系统->港口建设管理->建设进度初步设计申请",null,null,"进入建设进度初步设计申请页面\n待办事务中出现建设进度初步设计申请的记录","2016/10/28 OK","杜青蔚","OK"]
["M03_UC086",null,null,null,"1.审查","建设进度初步设计申请记录后点击【编辑】按钮",null,"进入建设进度初步设计申请编辑页面","2016/10/28 OK","杜青蔚","OK"]
["M03_UC087",null,null,null,"2.退回","在建设进度初步设计申请办理页面点击【退回】按钮",null,"退回成功，页面刷新，编辑按钮消失\n流程状态变为空\n流程历史查看页面更新","2016/10/28 OK","杜青蔚","OK"]
["M03_UC088",null,null,null,"3.意见","在建设进度初步设计申请办理页面点击【意见】按钮，填写审批意见",null,"审查栏显示审批意见","2016/10/28 OK","杜青蔚","OK"]
["M03_UC089",null,null,null,"4.选择人员","在建设进度初步设计申请办理页面点击【选择人员】按钮，选择审批人员",null,"选择成功","2016/10/28 OK","杜青蔚","OK"]
["M03_UC090",null,null,null,"5.提交","在建设进度初步设计申请办理页面点击【提交】按钮",null,"提交成功，页面刷新，编辑按钮变成流程历史\n编辑页面中的领导办理栏中内容更新\n流程状态变为分管领导办理","2016/10/28 OK","杜青蔚","OK"]
["M03_UC091",null,null,"5.登录用户：省厅分管领导","用户登录->建设与经营管理子系统->港口建设管理->建设进度初步设计申请",null,null,"进入建设进度初步设计申请页面\n待办事务中出现建设进度初步设计申请的记录\n记录后出现流程历史按钮","2016/11/20 OK","杜青蔚","OK"]
["M03_UC092",null,null,null,"1.审查","建设进度初步设计申请记录后点击【编辑】按钮",null,"进入建设进度初步设计申请编辑页面","2016/11/20 OK","杜青蔚","OK"]
["M03_UC093",null,null,null,"2.退回","在建设进度初步设计申请办理页面点击【退回】按钮",null,"退回成功，页面刷新，编辑按钮消失\n流程状态变为经办人受理\n流程历史查看页面更新","2016/11/20 OK","杜青蔚","OK"]
["M03_UC094",null,null,null,"3.意见","在建设进度初步设计申请办理页面点击【意见】按钮，填写审批意见",null,"审查栏显示审批意见","2016/11/20 OK","杜青蔚","OK"]
["M03_UC095",null,null,null,"4.选择人员","在建设进度初步设计申请办理页面点击【选择人员】按钮，选择审批人员",null,"选择成功","2016/11/20 OK","杜青蔚","OK"]
["M03_UC096",null,null,null,"5.提交","在建设进度初步设计申请办理页面点击【提交】按钮",null,"提交成功，页面刷新，编辑按钮变成流程历史\n编辑页面中的领导办理栏中内容更新\n流程状态变为","2016/11/20 OK","杜青蔚","OK"]
["M03_UC097",null,"建设进度初步设计变更流程","1.登录用户：港口经营人","用户登录->建设与经营管理子系统->港口建设管理->建设进度初步设计变更",null,null,"进入建设进度初步设计变更页面","2016/11/01 OK","杜青蔚","OK"]
["M03_UC098",null,null,null,"1.新增建设进度初步设计变更",null,null,"保存成功，页面刷新","2016/11/01 OK","杜青蔚","OK"]
["M03_UC099",null,null,null,"2.添加港口建设项目初步设计审批申请文件、港口建设项目初步设计文件、港口建设项目批准或者核准、备案文件",null,null,"添加成功","2016/11/01 OK","杜青蔚",{"$f":"RIGHTB(I103,2)","v":"OK"}]
["M03_UC0100",null,null,null,"3.添加其他附件",null,null,"添加成功","2016/11/01 OK","杜青蔚","OK"]
["M03_UC0101",null,null,null,"4.提交","建设进度初步设计变更页面，点击【提交】按钮",null,"提交成功，办理按钮消失\n出现需提交附件审查会议纪要、专家审查意见、对审查意见的答复、第三方审查咨询报告 （ 可选 ）、初步设计文件报批稿\n当前状态更新为审查\n审查栏显示提交人和当前日期","2016/11/20 OK","杜青蔚","OK"]
["M03_UC0102",null,null,"2.登录用户：地市审查人员","用户登录->建设与经营管理子系统->港口建设管理->建设进度初步设计变更",null,null,"进入建设进度初步设计变更页面","2016/11/20 OK","杜青蔚","OK"]
["M03_UC0103",null,null,null,"1.审查","建设进度初步设计变更记录后点击【办理】按钮",null,"进入建设进度初步设计变更办理页面","2016/11/20 OK","杜青蔚","OK"]
["M03_UC0104",null,null,null,"2.退回","在建设进度初步设计变更办理页面填写审批意见，点击【退回】按钮",null,"退回成功，页面刷新，办理按钮消失\n流程状态变为申请\n建设进度初步设计变更办理页面出现申请栏内容","2016/11/20 OK","杜青蔚","OK"]
["M03_UC0105",null,null,null,"3.意见","在建设进度初步设计变更办理页面点击【意见】按钮，填写审批意见",null,"审查栏显示审批意见","2016/11/20 OK","杜青蔚",{"$f":"RIGHTB(I109,2)","v":"OK"}]
["M03_UC0106",null,null,null,"4.转报省级","在建设进度初步设计变更办理页面点击【转报省级】按钮",null,"退回成功，页面刷新，办理按钮消失\n流程状态变为审请","2016/11/20 OK","杜青蔚","OK"]
["M03_UC0107",null,null,"3.登录用户：省厅经办人","用户登录->建设与经营管理子系统->港口建设管理->建设进度初步设计变更",null,null,"进入建设进度初步设计变更页面","2016/11/20 OK","杜青蔚","OK"]
["M03_UC0108",null,null,null,"1.审查","建设进度初步设计变更记录后点击【编辑】按钮",null,"进入建设进度初步设计变更编辑页面","2016/11/20 OK","杜青蔚","OK"]
["M03_UC0109",null,null,null,"2.退回","在建设进度初步设计变更办理页面点击【退回】按钮",null,"退回成功，页面刷新，编辑按钮消失\n流程状态变为退回地市\n","2016/11/20 OK","杜青蔚","OK"]
["M03_UC0110",null,null,null,"3.意见","在建设进度初步设计变更办理页面点击【意见】按钮，填写审批意见",null,"审查栏显示审批意见","2016/11/20 OK","杜青蔚","OK"]
["M03_UC0111",null,null,null,"4.选择人员","在建设进度初步设计变更办理页面点击【选择人员】按钮，选择审批人员",null,"选择成功","2016/11/20 OK","杜青蔚","OK"]
["M03_UC0112",null,null,null,"5.提交","在建设进度初步设计变更办理页面点击【提交】按钮",null,"提交成功，页面刷新，编辑按钮变成流程历史\n编辑页面中的领导办理栏中内容更新\n流程状态变为领导办理","2016/11/20 OK","杜青蔚","OK"]
["M03_UC0113",null,null,"4.登录用户：省厅领导","用户登录->建设与经营管理子系统->港口建设管理->建设进度初步设计变更",null,null,"进入建设进度初步设计变更页面\n待办事务中出现建设进度竣工申请的记录","2016/11/20 OK","杜青蔚","OK"]
["M03_UC0114",null,null,null,"1.审查","建设进度初步设计变更记录后点击【编辑】按钮",null,"进入建设进度初步设计变更编辑页面","2016/11/20 OK","杜青蔚","OK"]
["M03_UC0115",null,null,null,"2.退回","在建设进度初步设计变更办理页面点击【退回】按钮",null,"退回成功，页面刷新，编辑按钮消失\n流程状态变为空\n流程历史查看页面更新","2016/11/20 OK","杜青蔚","OK"]
["M03_UC0116",null,null,null,"3.意见","在建设进度初步设计变更办理页面点击【意见】按钮，填写审批意见",null,"审查栏显示审批意见","2016/11/20 OK","杜青蔚","OK"]
["M03_UC0117",null,null,null,"4.选择人员","在建设进度初步设计变更办理页面点击【选择人员】按钮，选择审批人员",null,"选择成功","2016/11/20 OK","杜青蔚","OK"]
["M03_UC0118",null,null,null,"5.提交","在建设进度初步设计变更办理页面点击【提交】按钮",null,"提交成功，页面刷新，编辑按钮变成流程历史\n编辑页面中的领导办理栏中内容更新\n流程状态变为分管领导办理","2016/11/20 OK","杜青蔚","OK"]
["M03_UC0119",null,null,"5.登录用户：省厅分管领导","用户登录->建设与经营管理子系统->港口建设管理->建设进度初步设计变更",null,null,"进入建设进度初步设计变更页面\n待办事务中出现建设进度初步设计变更的记录\n记录后出现流程历史按钮","2016/11/20 OK","杜青蔚","OK"]
["M03_UC0120",null,null,null,"1.审查","建设进度初步设计变更记录后点击【编辑】按钮",null,"进入建设进度初步设计变更编辑页面","2016/11/20 OK","杜青蔚","OK"]
["M03_UC0121",null,null,null,"2.退回","在建设进度初步设计变更办理页面点击【退回】按钮",null,"退回成功，页面刷新，编辑按钮消失\n流程状态变为经办人受理\n流程历史查看页面更新","2016/11/20 OK","杜青蔚","OK"]
["M03_UC0122",null,null,null,"3.意见","在建设进度初步设计变更办理页面点击【意见】按钮，填写审批意见",null,"审查栏显示审批意见","2016/11/20 OK","杜青蔚",{"$f":"RIGHTB(I126,2)","v":"OK"}]
["M03_UC0123",null,null,null,"4.选择人员","在建设进度初步设计变更办理页面点击【选择人员】按钮，选择审批人员",null,"选择成功","2016/11/20 OK","杜青蔚","OK"]
["M03_UC0124",null,null,null,"5.提交","在建设进度初步设计变更办理页面点击【提交】按钮",null,"提交成功，页面刷新，编辑按钮变成流程历史\n编辑页面中的领导办理栏中内容更新\n流程状态变为","2016/11/20 OK","杜青蔚","OK"]
["M03_UC0125",null,"建设进度竣工申请流程","1.登录用户：港口经营人","用户登录->建设与经营管理子系统->港口建设管理->建设进度竣工申请",null,null,"进入建设进度竣工申请页面","2016/11/01 OK","杜青蔚","OK"]
["M03_UC0126",null,null,null,"1.新增建设进度竣工申请",null,null,"保存成功，页面刷新","2016/11/01 OK","杜青蔚","OK"]
["M03_UC0127",null,null,null,"2.添加港口建设进度竣工申请文件、港口建设项目竣工验收材料",null,null,"添加成功","2016/11/01 OK","杜青蔚","OK"]
["M03_UC0128",null,null,null,"3.添加其他附件",null,null,"添加成功","2016/11/01 OK","杜青蔚","OK"]
["M03_UC0129",null,null,null,"4.提交","建设进度竣工申请页面，点击【提交】按钮",null,"提交成功，办理按钮消失\n出现需提交附件审查会议纪要、专家审查意见、对审查意见的答复、第三方审查咨询报告 （ 可选 ）、初步设计文件报批稿\n当前状态更新为审查\n审查栏显示提交人和当前日期","2016/11/01 OK","杜青蔚","OK"]
["M03_UC0130",null,null,"2.登录用户：地市审查人员","用户登录->建设与经营管理子系统->港口建设管理->建设进度竣工申请",null,null,"进入建设进度竣工申请页面","2016/11/01 OK","杜青蔚","OK"]
["M03_UC0131",null,null,null,"1.审查","建设进度初步设计申请记录后点击【办理】按钮",null,"进入建设进度竣工申请办理页面","2016/11/01 OK","杜青蔚","OK"]
[{"$f":"A$2&\"_\"&\"UC0\"&(ROW()-4)","v":"M03_UC0132"},null,null,null,"2.退回","在建设进度竣工申请办理页面填写审批意见，点击【退回】按钮",null,"退回成功，页面刷新，办理按钮消失\n流程状态变为申请\n建设进度竣工申请办理页面出现申请栏内容","2016/11/02 OK","杜青蔚","OK"]
["M03_UC0133",null,null,null,"3.意见","在建设进度竣工申请办理页面点击【意见】按钮，填写审批意见",null,"审查栏显示审批意见","2016/11/02 OK","杜青蔚","OK"]
["M03_UC0134",null,null,null,"4.转报省级","在建设进度竣工申请办理页面点击【转报省级】按钮",null,"退回成功，页面刷新，办理按钮消失\n流程状态变为审请","2016/11/20 OK","杜青蔚","OK"]
["M03_UC0135",null,null,"3.登录用户：省厅经办人","用户登录->建设与经营管理子系统->港口建设管理->建设进度竣工申请",null,null,"进入建设进度竣工申请页面","2016/11/20 OK","杜青蔚",{"$f":"RIGHTB(I139,2)","v":"OK"}]
["M03_UC0136",null,null,null,"1.审查","建设进度竣工申请记录后点击【编辑】按钮",null,"进入建设进度竣工申请编辑页面","2016/11/20 OK","杜青蔚","OK"]
["M03_UC0137",null,null,null,"2.退回","在建设进度竣工申请办理页面点击【退回】按钮",null,"退回成功，页面刷新，编辑按钮消失\n流程状态变为退回地市\n","2016/11/20 OK","杜青蔚","OK"]
["M03_UC0138",null,null,null,"3.意见","在建设进度竣工申请办理页面点击【意见】按钮，填写审批意见",null,"审查栏显示审批意见","2016/11/20 OK","杜青蔚","OK"]
["M03_UC0139",null,null,null,"4.选择人员","在建设进度竣工申请办理页面点击【选择人员】按钮，选择审批人员",null,"选择成功","2016/11/20 OK","杜青蔚","OK"]
["M03_UC0140",null,null,null,"5.提交","在建设进度竣工申请办理页面点击【提交】按钮",null,"提交成功，页面刷新，编辑按钮变成流程历史\n编辑页面中的领导办理栏中内容更新\n流程状态变为领导办理","2016/11/20 OK","杜青蔚","OK"]
["M03_UC0141",null,null,"4.登录用户：省厅领导","用户登录->建设与经营管理子系统->港口建设管理->建设进度竣工申请",null,null,"进入建设进度竣工申请页面\n待办事务中出现建设进度竣工申请的记录","2016/11/20 OK","杜青蔚","OK"]
["M03_UC0142",null,null,null,"1.审查","建设进度竣工申请记录后点击【编辑】按钮",null,"进入建设进度竣工申请编辑页面","2016/11/20 OK","杜青蔚","OK"]
["M03_UC0143",null,null,null,"2.退回","在建设进度竣工申请办理页面点击【退回】按钮",null,"退回成功，页面刷新，编辑按钮消失\n流程状态变为空\n流程历史查看页面更新","2016/11/20 OK","杜青蔚","OK"]
["M03_UC0144",null,null,null,"3.意见","在建设进度竣工申请办理页面点击【意见】按钮，填写审批意见",null,"审查栏显示审批意见","2016/11/20 OK","杜青蔚","OK"]
["M03_UC0145",null,null,null,"4.选择人员","在建设进度竣工申请办理页面点击【选择人员】按钮，选择审批人员",null,"选择成功","2016/11/20 OK","杜青蔚","OK"]
["M03_UC0146",null,null,null,"5.提交","在建设进度竣工申请办理页面点击【提交】按钮",null,"提交成功，页面刷新，编辑按钮变成流程历史\n编辑页面中的领导办理栏中内容更新\n流程状态变为分管领导办理","2016/11/20 OK","杜青蔚","OK"]
["M03_UC0147",null,null,"5.登录用户：省厅分管领导","用户登录->建设与经营管理子系统->港口建设管理->建设进度竣工申请",null,null,"进入建设进度竣工申请页面\n待办事务中出现建设进度竣工申请的记录\n记录后出现流程历史按钮","2016/11/20 OK","杜青蔚","OK"]
["M03_UC0148",null,null,null,"1.审查","建设进度竣工申请记录后点击【编辑】按钮",null,"进入建设进度竣工申请编辑页面","2016/11/20 OK","杜青蔚",{"$f":"RIGHTB(I152,2)","v":"OK"}]
["M03_UC0149",null,null,null,"2.退回","在建设进度竣工申请办理页面点击【退回】按钮",null,"退回成功，页面刷新，编辑按钮消失\n流程状态变为经办人受理\n流程历史查看页面更新","2016/11/20 OK","杜青蔚","OK"]
["M03_UC0150",null,null,null,"3.意见","在建设进度竣工申请办理页面点击【意见】按钮，填写审批意见",null,"审查栏显示审批意见","2016/11/20 OK","杜青蔚","OK"]
["M03_UC0151",null,null,null,"4.选择人员","在建设进度竣工申请办理页面点击【选择人员】按钮，选择审批人员",null,"选择成功","2016/11/20 OK","杜青蔚","OK"]
["M03_UC0152",null,null,null,"5.提交","在建设进度竣工申请办理页面点击【提交】按钮",null,"提交成功，页面刷新，编辑按钮变成流程历史\n编辑页面中的领导办理栏中内容更新\n流程状态变为","2016/11/20 OK","杜青蔚","OK"]

{"sheet":"港口经营许可管理流程","index":3,"n_rows":228,"n_cols":12,"rows_kept":228,"cut":false,"hidden":false,"merged":[[0,1,0,2],[0,3,0,4],[1,1,1,2],[1,3,1,4],[4,2,26,2],[195,2,227,2],[4,1,227,1],[27,2,61,2],[62,2,96,2],[97,2,128,2],[129,2,161,2],[162,2,194,2]]}
["编号","场景",null,"概要",{"$nulls":4},"前提"]
["M04","港口经营许可管理流程",{"$nulls":6},"1.关联画面及功能正常\n2.港口经营人没有申请过许可证"]
[]
["编号","测试功能","测试对象","环境和数据条件","操作步骤","测试分支","分支明细","预想结果","判定履历","担当者","最新結果","BUG票ID"]
[{"$f":"A$2&\"_\"&\"UC0\"&(ROW()-4)","v":"M04_UC01"},"港口经营许可管理","港口经营许可申请流程","1、登录用户：港口经营人","用户登录->建设与经营管理子系统->港口经营管理->港口经营许可管理->港口经营许可申请",null,null,"进入港口经营许可申请页面","2016/11/03 OK","杜青蔚",{"$f":"RIGHTB(I5,2)","v":"OK"}]
[{"$f":"A$2&\"_\"&\"UC0\"&(ROW()-4)","v":"M04_UC02"},null,null,null,"1.选择经营地域、经营范围\n上传所需的材料附件",null,null,"添加成功","2016/11/03 OK","杜青蔚",{"$f":"RIGHTB(I6,2)","v":"OK"}]
["M04_UC03",null,null,null,"2.提交","港口经营许可申请新增和编辑页面，点击【提交】按钮",null,"提交成功，编辑和删除按钮消失，出现流程历史按钮\n流程历史中显示提交的信息\n流程步骤显示申请","2016/11/03 OK","杜青蔚","OK"]
["M04_UC04",null,null,null,"3.根据指定条件（单个或组合条件），完成查询功能",null,null,"查询出正确的结果集","2016/11/03 OK","杜青蔚","OK"]
["M04_UC05",null,null,"2、登录用户：地市级港口行政管理部门管理员","用户登录->建设与经营管理子系统",null,null,"待办事务中出现港口经营许可申请的待办信息","2016/11/03 OK","杜青蔚","OK"]
["M04_UC06",null,null,null,"进入待办","点击待办记录",null,"进入待办一览","2016/11/03 OK","杜青蔚",{"$f":"RIGHTB(I10,2)","v":"OK"}]
["M04_UC07",null,null,null,"处理待办事务","点击【办理】按钮",null,"进入待办一览详细页面","2016/11/03 OK","杜青蔚","OK"]
["M04_UC08",null,null,null,"用户登录->建设与经营管理子系统->港口经营管理->港口经营许可管理->港口经营许可申请",null,null,"进入港口经营许可申请页面","2016/11/03 OK","杜青蔚",{"$f":"RIGHTB(I12,2)","v":"OK"}]
["M04_UC09",null,null,null,"1.材料审查","经营许可申请记录后点击【办理】按钮",null,"进入经营许可申请办理页面","2016/11/03 OK","杜青蔚","OK"]
["M04_UC010",null,null,null,"2.退回","在经营许可申请办理页面填写材料审查意见，点击【退回】按钮",null,"退回成功，页面刷新，办理按钮消失\n流程历史中显示退回的信息\n流程步骤显示材料审查\n退回到申请阶段","2016/11/03 OK","杜青蔚","OK"]
["M04_UC011",null,null,null,"3.同意","在经营许可申请办理页面填写材料审查意见，点击【同意】按钮",null,"通过成功，页面刷新\n流程历史中显示材料审查同意的信息\n办理页面出现现场核查意见栏","2016/11/03 OK","杜青蔚","OK"]
["M04_UC012",null,null,"3、登录用户：地市级港口行政管理部门管理员","1.核查","经营许可申请记录后点击【办理】按钮",null,"进入经营许可申请办理页面","2016/11/04 OK","杜青蔚",{"$f":"RIGHTB(I16,2)","v":"OK"}]
["M04_UC013",null,null,null,"2.退回","在经营许可申请办理页面填写核查意见，点击【退回】按钮",null,"退回成功，页面刷新\n流程历史中显示退回的信息\n流程步骤显示核查\n退回到材料审查阶段","2016/11/04 OK","杜青蔚","OK"]
["M04_UC014",null,null,null,"3.同意","在经营许可申请办理页面填写核查意见见，点击【同意】按钮",null,"通过成功，页面刷新\n流程历史中显示核查同意的信息\n办理页面出现复核意见栏","2016/11/04 OK","杜青蔚","OK"]
["M04_UC015",null,null,"4、登录用户：地市级港口行政管理部门管理员","1.复核","经营许可申请记录后点击【办理】按钮",null,"进入经营许可申请办理页面","2016/11/04 OK","杜青蔚",{"$f":"RIGHTB(I19,2)","v":"OK"}]
["M04_UC016",null,null,null,"2.退回","在经营许可申请办理页面填写复核意见，点击【退回】按钮",null,"退回成功，页面刷新\n流程历史中显示退回的信息\n流程步骤显示复核\n退回到核查阶段","2016/11/04 OK","杜青蔚","OK"]
["M04_UC017",null,null,null,"3.同意","在经营许可申请办理页面填写复核意见，点击【同意】按钮",null,"通过成功，页面刷新\n流程历史中显示复核同意的信息\n办理页面出现审批意见栏","2016/11/04 OK","杜青蔚","OK"]
["M04_UC018",null,null,"5、登录用户：地市级港口行政管理部门管理员","1.审批","经营许可申请记录后点击【办理】按钮",null,"进入经营许可申请办理页面","2016/11/04 OK","杜青蔚","OK"]
["M04_UC019",null,null,null,"2.退回","在经营许可申请办理页面填写审批意见，点击【退回】按钮",null,"退回成功，页面刷新\n流程历史中显示退回的信息\n流程步骤显示审批\n退回到复核阶段","2016/11/04 OK","杜青蔚","OK"]
["M04_UC020",null,null,null,"3.同意","在经营许可申请办理页面填写审批意见，点击【同意】按钮",null,"通过成功，页面弹出‘准予行政许可决定书’\n流程历史中显示审批同意的信息\n记录后出现【许可证决定书】按钮、【发证】按钮","2016/11/04 OK","杜青蔚","OK"]
["M04_UC021",null,null,"6、登录用户：地市级港口行政管理部门管理员","1.发证","在经营许可申请一览列表点击【发证】按钮",null,"跳转至许可证信息页面","2016/11/04 OK","杜青蔚","OK"]
["M04_UC022",null,null,null,"2.在许可证信息页面\n填写许可证号，上传许可证正反面图",null,null,"添加成功","2016/11/04 OK","杜青蔚","OK"]
["M04_UC023",null,null,null,"3.发证","在许可证信息页面，点击【发证】按钮",null,"发证成功，页面刷新\n港口经营许可申请页面中发证按钮消失\n许可证信息页面新增该证信息","2016/11/04 OK","杜青蔚","OK"]
["M04_UC024",null,"港口经营许可变更流程","1、登录用户：港口经营人","用户登录->建设与经营管理子系统->港口经营管理->港口经营许可管理->港口经营许可变更",null,null,"进入港口经营许可变更页面","2016/11/07 OK","杜青蔚","OK"]
["M04_UC025",null,null,null,"1.输入联系人、变更后的企业名称、办公地址、法定代表人、经营范围、上传所需的材料附件",null,null,"添加变更成功","2016/11/07 OK","杜青蔚","OK"]
["M04_UC026",null,null,null,"2.提交","港口经营许可变更新增和编辑页面，点击【提交】按钮",null,"提交成功，编辑和删除按钮消失，出现流程历史按钮\n流程历史中显示提交的信息\n流程步骤显示申请","2016/11/07 OK","杜青蔚","OK"]
["M04_UC027",null,null,null,"3.根据指定条件（单个或组合条件），完成查询功能",null,null,"查询出正确的结果集","2016/11/07 OK","杜青蔚","OK"]
["M04_UC028",null,null,"2、登录用户：地市级港口行政管理部门管理员","用户登录->建设与经营管理子系统",null,null,"待办事务中出现港口经营许可变更的待办信息","2016/11/07 OK","杜青蔚","OK"]
["M04_UC029",null,null,null,"进入待办","点击待办记录",null,"进入待办一览","2016/11/07 OK","杜青蔚","OK"]
["M04_UC030",null,null,null,"处理待办事务","点击【办理】按钮",null,"进入待办一览详细页面","2016/11/07 OK","杜青蔚","OK"]
["M04_UC031",null,null,null,"用户登录->建设与经营管理子系统->港口经营管理->港口经营许可管理->港口经营许可变更",null,null,"进入港口经营许可变更页面","2016/11/07 OK","杜青蔚","OK"]
["M04_UC032",null,null,null,"1.材料审查","经营许可变更记录后点击【办理】按钮",null,"进入经营许可变更办理页面","2016/11/07 OK","杜青蔚","OK"]
["M04_UC033",null,null,null,"2.退回","在经营许可变更办理页面填写材料审查意见，点击【退回】按钮",null,"退回成功，页面刷新\n流程历史中显示退回的信息\n流程步骤显示材料审查\n退回到申请阶段","2016/11/07 OK","杜青蔚","OK"]
["M04_UC034",null,null,null,"3.同意","在经营许可变更办理页面填写材料审查意见，点击【同意】按钮",null,"通过成功，页面刷新\n流程历史中显示材料审查同意的信息\n办理页面出现核查意见栏","2016/11/07 OK","杜青蔚","OK"]
["M04_UC035",null,null,"3、登录用户：地市级港口行政管理部门管理员","用户登录->建设与经营管理子系统",null,null,"待办事务中出现港口经营许可变更的待办信息","2016/11/07 OK","杜青蔚","OK"]
["M04_UC036",null,null,null,"进入待办","点击待办记录",null,"进入待办一览","2016/11/07 OK","杜青蔚","OK"]
["M04_UC037",null,null,null,"处理待办事务","点击【办理】按钮",null,"进入待办一览详细页面","2016/11/07 OK","杜青蔚","OK"]
["M04_UC038",null,null,null,"用户登录->建设与经营管理子系统->港口经营管理->港口经营许可管理->港口经营许可变更",null,null,"进入港口经营许可变更页面","2016/11/07 OK","杜青蔚","OK"]
["M04_UC039",null,null,null,"1.核查","经营许可变更记录后点击【办理】按钮",null,"进入经营许可变更办理页面","2016/11/07 OK","杜青蔚","OK"]
["M04_UC040",null,null,null,"2.退回","在经营许可变更办理页面填写核查意见，点击【退回】按钮",null,"退回成功，页面刷新\n流程历史中显示退回的信息\n流程步骤显示核查\n退回到材料审查阶段","2016/11/07 OK","杜青蔚","OK"]
["M04_UC041",null,null,null,"3.同意","在经营许可变更办理页面填写核查意见，点击【同意】按钮",null,"通过成功，页面刷新\n流程历史中显示核查同意的信息\n办理页面出现复核意见栏","2016/11/07 OK","杜青蔚","OK"]
["M04_UC042",null,null,"4、登录用户：地市级港口行政管理部门管理员","用户登录->建设与经营管理子系统",null,null,"待办事务中出现港口经营许可变更的待办信息","2016/11/07 OK","杜青蔚","OK"]
["M04_UC043",null,null,null,"进入待办","点击待办记录",null,"进入待办一览","2016/11/07 OK","杜青蔚","OK"]
["M04_UC044",null,null,null,"处理待办事务","点击【办理】按钮",null,"进入待办一览详细页面","2016/11/07 OK","杜青蔚","OK"]
["M04_UC045",null,null,null,"用户登录->建设与经营管理子系统->港口经营管理->港口经营许可管理->港口经营许可变更",null,null,"进入港口经营许可变更页面","2016/11/07 OK","杜青蔚","OK"]
["M04_UC046",null,null,null,"1.复核","经营许可变更记录后点击【办理】按钮",null,"进入经营许可变更办理页面","2016/11/07 OK","杜青蔚","OK"]
["M04_UC047",null,null,null,"2.退回","在经营许可变更办理页面填写复核意见，点击【退回】按钮",null,"退回成功，页面刷新\n流程历史中显示退回的信息\n流程步骤显示复核\n退回到核查阶段","2016/11/07 OK","杜青蔚","OK"]
["M04_UC048",null,null,null,"3.同意","在经营许可变更办理页面填写复核意见，点击【同意】按钮",null,"通过成功，页面刷新\n流程历史中显示复核同意的信息\n办理页面出现审核意见栏","2016/11/07 OK","杜青蔚","OK"]
["M04_UC049",null,null,"5、登录用户：地市级港口行政管理部门管理员","用户登录->建设与经营管理子系统",null,null,"待办事务中出现港口经营许可变更的待办信息","2016/11/08 OK","杜青蔚","OK"]
["M04_UC050",null,null,null,"进入待办","点击待办记录",null,"进入待办一览","2016/11/08 OK","杜青蔚","OK"]
["M04_UC051",null,null,null,"处理待办事务","点击【办理】按钮",null,"进入待办一览详细页面","2016/11/08 OK","杜青蔚","OK"]
["M04_UC052",null,null,null,"用户登录->建设与经营管理子系统->港口经营管理->港口经营许可管理->港口经营许可变更",null,null,"进入港口经营许可变更页面","2016/11/08 OK","杜青蔚","OK"]
["M04_UC053",null,null,null,"1.审批","经营许可变更记录后点击【办理】按钮",null,"进入经营许可变更办理页面","2016/11/08 OK","杜青蔚","OK"]
["M04_UC054",null,null,null,"2.退回","在经营许可变更办理页面填写审批意见，点击【退回】按钮",null,"退回成功，页面刷新\n流程历史中显示退回的信息\n流程步骤显示审批\n退回到复核阶段","2016/11/08 OK","杜青蔚","OK"]
["M04_UC055",null,null,null,"3.同意","在经营许可变更办理页面填写审批意见，点击【同意】按钮",null,"通过成功，页面弹出‘准予行政许可决定书’\n流程历史中显示审批同意的信息\n记录后出现【许可证决定书】按钮、【发证】按钮","2016/11/08 OK","杜青蔚","OK"]
["M04_UC056",null,null,"6、登录用户：地市级港口行政管理部门管理员","1.发证","在经营许可变更一览列表点击【发证】按钮",null,"跳转至许可证信息页面","2016/11/08 OK","杜青蔚","OK"]
["M04_UC057",null,null,null,"2.在许可证信息页面\n上传许可证正反面图",null,null,"添加成功","2016/11/08 OK","杜青蔚","OK"]
["M04_UC058",null,null,null,"3.发证","在许可证信息页面，点击【发证】按钮",null,"发证成功，页面刷新\n港口经营许可变更页面中发证按钮消失\n许可证信息页面新增该证信息","2016/11/08 OK","杜青蔚","OK"]
["M04_UC059",null,"港口经营许可延续流程","1、登录用户：港口经营人","用户登录->建设与经营管理子系统->港口经营管理->港口经营许可管理->港口经营许可延续",null,null,"进入港口经营许可延续页面","2016/11/08 OK","杜青蔚","OK"]
["M04_UC060",null,null,null,"1.输入联系人、上传所需的材料附件",null,null,"添加延续成功","2016/11/08 OK","杜青蔚","OK"]
["M04_UC061",null,null,null,"2.提交","港口经营许可延续的新增和编辑页面，点击【提交】按钮",null,"提交成功，编辑和删除按钮消失，出现流程历史按钮\n流程历史中显示提交的信息\n流程步骤显示申请","2016/11/08 OK","杜青蔚","OK"]
["M04_UC062",null,null,null,"3.根据指定条件（单个或组合条件），完成查询功能",null,null,"查询出正确的结果集","2016/11/08 OK","杜青蔚","OK"]
["M04_UC063",null,null,"2、登录用户：地市级港口行政管理部门管理员","用户登录->建设与经营管理子系统",null,null,"待办事务中出现港口经营许可延续的待办信息","2016/11/08 OK","杜青蔚","OK"]
["M04_UC064",null,null,null,"进入待办","点击待办记录",null,"进入待办一览","2016/11/08 OK","杜青蔚","OK"]
["M04_UC065",null,null,null,"处理待办事务","点击【办理】按钮",null,"进入待办一览详细页面","2016/11/08 OK","杜青蔚","OK"]
[{"$f":"A$2&\"_\"&\"UC0\"&(ROW()-4)","v":"M04_UC066"},null,null,null,"用户登录->建设与经营管理子系统->港口经营管理->港口经营许可管理->港口经营许可延续",null,null,"进入港口经营许可延续页面","2016/11/08 OK","杜青蔚","OK"]
["M04_UC067",null,null,null,"1.材料审查","经营许可延续记录后点击【办理】按钮",null,"进入经营许可延续办理页面","2016/11/08 OK","杜青蔚","OK"]
["M04_UC068",null,null,null,"2.退回","在经营许可延续办理页面填写材料审查意见，点击【退回】按钮",null,"退回成功，页面刷新\n流程历史中显示退回的信息\n流程步骤显示材料审查\n退回到申请阶段","2016/11/08 OK","杜青蔚","OK"]
["M04_UC069",null,null,null,"3.同意","在经营许可延续办理页面填写材料审查意见，点击【同意】按钮",null,"通过成功，页面刷新\n流程历史中显示材料审查同意的信息\n办理页面出现核查意见栏","2016/11/08 OK","杜青蔚","OK"]
["M04_UC070",null,null,"3、登录用户：地市级港口行政管理部门管理员","用户登录->建设与经营管理子系统",null,null,"待办事务中出现港口经营许可延续的待办信息","2016/11/08 OK","杜青蔚","OK"]
["M04_UC071",null,null,null,"进入待办","点击待办记录",null,"进入待办一览","2016/11/08 OK","杜青蔚","OK"]
["M04_UC072",null,null,null,"处理待办事务","点击【办理】按钮",null,"进入待办一览详细页面","2016/11/08 OK","杜青蔚","OK"]
["M04_UC073",null,null,null,"用户登录->建设与经营管理子系统->港口经营管理->港口经营许可管理->港口经营许可延续",null,null,"进入港口经营许可延续页面","2016/11/08 OK","杜青蔚","OK"]
["M04_UC074",null,null,null,"1.核查","经营许可延续记录后点击【办理】按钮",null,"进入经营许可延续办理页面","2016/11/08 OK","杜青蔚","OK"]
["M04_UC075",null,null,null,"2.退回","在经营许可延续办理页面填写核查意见，点击【退回】按钮",null,"退回成功，页面刷新\n流程历史中显示退回的信息\n流程步骤显示核查\n退回到材料审查阶段","2016/11/08 OK","杜青蔚","OK"]
["M04_UC076",null,null,null,"3.同意","在经营许可延续办理页面填写核查意见，点击【同意】按钮",null,"通过成功，页面刷新\n流程历史中显示核查同意的信息\n办理页面出现复核意见栏","2016/11/08 OK","杜青蔚","OK"]
["M04_UC077",null,null,"4、登录用户：地市级港口行政管理部门管理员","用户登录->建设与经营管理子系统",null,null,"待办事务中出现港口经营许可延续的待办信息","2016/11/08 OK","杜青蔚","OK"]
["M04_UC078",null,null,null,"进入待办","点击待办记录",null,"进入待办一览","2016/11/08 OK","杜青蔚",{"$f":"RIGHTB(I82,2)","v":"OK"}]
["M04_UC079",null,null,null,"处理待办事务","点击【办理】按钮",null,"进入待办一览详细页面","2016/11/08 OK","杜青蔚","OK"]
["M04_UC080",null,null,null,"用户登录->建设与经营管理子系统->港口经营管理->港口经营许可管理->港口经营许可延续",null,null,"进入港口经营许可延续页面","2016/11/08 OK","杜青蔚","OK"]
["M04_UC081",null,null,null,"1.复核","经营许可变更记录后点击【办理】按钮",null,"进入经营许可延续办理页面","2016/11/08 OK","杜青蔚","OK"]
["M04_UC082",null,null,null,"2.退回","在经营许可延续办理页面填写复核意见，点击【退回】按钮",null,"退回成功，页面刷新\n流程历史中显示退回的信息\n流程步骤显示复核\n退回到核查阶段","2016/11/08 OK","杜青蔚","OK"]
["M04_UC083",null,null,null,"3.同意","在经营许可延续办理页面填写复核意见，点击【同意】按钮",null,"通过成功，页面刷新\n流程历史中显示复核同意的信息\n办理页面出现审核意见栏","2016/11/08 OK","杜青蔚","OK"]
["M04_UC084",null,null,"5、登录用户：地市级港口行政管理部门管理员","用户登录->建设与经营管理子系统",null,null,"待办事务中出现港口经营许可延续的待办信息","2016/11/09 OK","杜青蔚","OK"]
["M04_UC085",null,null,null,"进入待办","点击待办记录",null,"进入待办一览","2016/11/09 OK","杜青蔚","OK"]
["M04_UC086",null,null,null,"处理待办事务","点击【办理】按钮",null,"进入待办一览详细页面","2016/11/09 OK","杜青蔚","OK"]
["M04_UC087",null,null,null,"用户登录->建设与经营管理子系统->港口经营管理->港口经营许可管理->港口经营许可延续",null,null,"进入港口经营许可延续页面","2016/11/09 OK","杜青蔚","OK"]
["M04_UC088",null,null,null,"1.审批","经营许可延续记录后点击【办理】按钮",null,"进入经营许可延续办理页面","2016/11/09 OK","杜青蔚","OK"]
["M04_UC089",null,null,null,"2.退回","在经营许可延续办理页面填写审批意见，点击【退回】按钮",null,"退回成功，页面刷新\n流程历史中显示退回的信息\n流程步骤显示审批\n退回到复核阶段","2016/11/09 OK","杜青蔚","OK"]
["M04_UC090",null,null,null,"3.同意","在经营许可延续办理页面填写审批意见，点击【同意】按钮",null,"通过成功，页面弹出‘准予行政许可决定书’\n流程历史中显示审批同意的信息\n记录后出现【许可证决定书】按钮、【发证】按钮","2016/11/09 OK","杜青蔚","OK"]
["M04_UC091",null,null,"6、登录用户：地市级港口行政管理部门管理员","1.发证","在经营许可延续一览列表点击【发证】按钮",null,"跳转至许可证信息页面","2016/11/09 OK","杜青蔚","OK"]
["M04_UC092",null,null,null,"2.在许可证信息页面\n上传许可证正反面图",null,null,"添加成功","2016/11/09 OK","杜青蔚","OK"]
["M04_UC093",null,null,null,"3.发证","在许可证信息页面，点击【发证】按钮",null,"发证成功，页面刷新\n港口经营许可延续页面中发证按钮消失\n许可证信息页面新增该证信息","2016/11/09 OK","杜青蔚","OK"]
["M04_UC094",null,"港口经营许可注销流程","1、登录用户：港口经营人","用户登录->建设与经营管理子系统->港口经营管理->港口经营许可管理->港口经营许可注销",null,null,"进入港口经营许可注销页面","2016/11/08 OK","杜青蔚","OK"]
["M04_UC095",null,null,null,"1.输入联系人、上传所需的材料附件",null,null,"添加延续成功","2016/11/08 OK","杜青蔚","OK"]
["M04_UC096",null,null,null,"2.提交","港口经营许可延续的新增和编辑页面，点击【提交】按钮",null,"提交成功，编辑和删除按钮消失，出现流程历史按钮\n流程历史中显示提交的信息\n流程步骤显示申请","2016/11/08 OK","杜青蔚","OK"]
["M04_UC097",null,null,null,"3.根据指定条件（单个或组合条件），完成查询功能",null,null,"查询出正确的结果集","2016/11/08 OK","杜青蔚","OK"]
["M04_UC098",null,null,"2、登录用户：地市级港口行政管理部门管理员","用户登录->建设与经营管理子系统",null,null,"待办事务中出现港口经营许可注销的待办信息","2016/11/15 OK","杜青蔚","OK"]
["M04_UC099",null,null,null,"进入待办","点击待办记录",null,"进入待办一览","2016/11/15 OK","杜青蔚","OK"]
["M04_UC0100",null,null,null,"处理待办事务","点击【办理】按钮",null,"进入待办一览详细页面","2016/11/15 OK","杜青蔚","OK"]
["M04_UC0101",null,null,null,"用户登录->建设与经营管理子系统->港口经营管理->港口经营许可管理->港口经营许可注销",null,null,"进入港口经营许可注销页面","2016/11/15 OK","杜青蔚","OK"]
["M04_UC0102",null,null,null,"1.材料审查","经营许可注销记录后点击【办理】按钮",null,"进入经营许可注销办理页面","2016/11/15 OK","杜青蔚","OK"]
["M04_UC0103",null,null,null,"2.退回","在经营许可注销办理页面填写材料审查意见，点击【退回】按钮",null,"退回成功，页面刷新\n流程历史中显示退回的信息\n流程步骤显示材料审查\n退回到申请阶段","2016/11/15 OK","杜青蔚","OK"]
["M04_UC0104",null,null,null,"3.同意","在经营许可注销办理页面填写材料审查意见，点击【同意】按钮",null,"通过成功，页面刷新\n流程历史中显示材料审查同意的信息\n办理页面出现核查意见栏","2016/11/15 OK","杜青蔚","OK"]
["M04_UC0105",null,null,"3、登录用户：地市级港口行政管理部门管理员","用户登录->建设与经营管理子系统",null,null,"待办事务中出现港口经营许可注销的待办信息","2016/11/15 OK","杜青蔚","OK"]
["M04_UC0106",null,null,null,"进入待办","点击待办记录",null,"进入待办一览","2016/11/15 OK","杜青蔚","OK"]
["M04_UC0107",null,null,null,"处理待办事务","点击【办理】按钮",null,"进入待办一览详细页面","2016/11/15 OK","杜青蔚","OK"]
["M04_UC0108",null,null,null,"用户登录->建设与经营管理子系统->港口经营管理->港口经营许可管理->港口经营许可注销",null,null,"进入港口经营许可注销页面","2016/11/15 OK","杜青蔚","OK"]
["M04_UC0109",null,null,null,"1.核查","经营许可注销记录后点击【办理】按钮",null,"进入经营许可注销办理页面","2016/11/15 OK","杜青蔚","OK"]
["M04_UC0110",null,null,null,"2.退回","在经营许可注销办理页面填写核查意见，点击【退回】按钮",null,"退回成功，页面刷新\n流程历史中显示退回的信息\n流程步骤显示核查\n退回到材料审查阶段","2016/11/15 OK","杜青蔚","OK"]
["M04_UC0111",null,null,null,"3.同意","在经营许可注销办理页面填写核查意见，点击【同意】按钮",null,"通过成功，页面刷新\n流程历史中显示核查同意的信息\n办理页面出现复核意见栏","2016/11/15 OK","杜青蔚","OK"]
["M04_UC0112",null,null,"4、登录用户：地市级港口行政管理部门管理员","用户登录->建设与经营管理子系统",null,null,"待办事务中出现港口经营许可注销的待办信息","2016/11/15 OK","杜青蔚","OK"]
["M04_UC0113",null,null,null,"进入待办","点击待办记录",null,"进入待办一览","2016/11/15 OK","杜青蔚","OK"]
["M04_UC0114",null,null,null,"处理待办事务","点击【办理】按钮",null,"进入待办一览详细页面","2016/11/15 OK","杜青蔚","OK"]
["M04_UC0115",null,null,null,"用户登录->建设与经营管理子系统->港口经营管理->港口经营许可管理->港口经营许可注销",null,null,"进入港口经营许可注销页面","2016/11/15 OK","杜青蔚","OK"]
["M04_UC0116",null,null,null,"1.复核","经营许可注销记录后点击【办理】按钮",null,"进入经营许可注销办理页面","2016/11/15 OK","杜青蔚","OK"]
["M04_UC0117",null,null,null,"2.退回","在经营许可注销办理页面填写复核意见，点击【退回】按钮",null,"退回成功，页面刷新\n流程历史中显示退回的信息\n流程步骤显示复核\n退回到核查阶段","2016/11/15 OK","杜青蔚","OK"]
["M04_UC0118",null,null,null,"3.同意","在经营许可注销办理页面填写复核意见，点击【同意】按钮",null,"通过成功，页面刷新\n流程历史中显示复核同意的信息\n办理页面出现审核意见栏","2016/11/15 OK","杜青蔚","OK"]
["M04_UC0119",null,null,"5、登录用户：地市级港口行政管理部门管理员","用户登录->建设与经营管理子系统",null,null,"待办事务中出现港口经营许可注销的待办信息","2016/11/15 OK","杜青蔚","OK"]
["M04_UC0120",null,null,null,"进入待办","点击待办记录",null,"进入待办一览","2016/11/15 OK","杜青蔚","OK"]
["M04_UC0121",null,null,null,"处理待办事务","点击【办理】按钮",null,"进入待办一览详细页面","2016/11/15 OK","杜青蔚","OK"]
["M04_UC0122",null,null,null,"用户登录->建设与经营管理子系统->港口经营管理->港口经营许可管理->港口经营许可注销",null,null,"进入港口经营许可注销页面","2016/11/15 OK","杜青蔚","OK"]
["M04_UC0123",null,null,null,"1.审批","经营许可注销记录后点击【办理】按钮",null,"进入经营许可注销办理页面","2016/11/15 OK","杜青蔚","OK"]
["M04_UC0124",null,null,null,"2.退回","在经营许可注销办理页面填写审批意见，点击【退回】按钮",null,"退回成功，页面刷新\n流程历史中显示退回的信息\n流程步骤显示审批\n退回到复核阶段","2016/11/15 OK","杜青蔚","OK"]
["M04_UC0125",null,null,null,"3.同意","在经营许可注销办理页面填写审批意见，点击【同意】按钮",null,"通过成功，页面弹出‘准予行政许可决定书’\n流程历史中显示审批同意的信息\n记录后出现【许可证决定书】按钮、【发证】按钮","2016/11/15 OK","杜青蔚","OK"]
["M04_UC0126",null,"港口经营理货申请流程","1、登录用户：港口经营人","用户登录->建设与经营管理子系统->港口经营管理->港口经营许可管理->港口经营理货申请",null,null,"进入港口经营理货申请页面","2016/11/15 OK","杜青蔚","OK"]
["M04_UC0127",null,null,null,"1.输入相关内容、上传所需的材料附件",null,null,"添加理货申请成功","2016/11/15 OK","杜青蔚","OK"]
["M04_UC0128",null,null,null,"2.提交","港口经营理货申请的新增和编辑页面，点击【转报省局】按钮",null,"提交成功，编辑和删除按钮消失\n流程状态显示为转报省局","2016/11/21 OK","杜青蔚","OK"]
["M04_UC0129",null,null,null,"3.根据指定条件（单个或组合条件），完成查询功能",null,null,"查询出正确的结果集","2016/11/15 OK","杜青蔚","OK"]
[{"$f":"A$2&\"_\"&\"UC0\"&(ROW()-4)","v":"M04_UC0130"},null,null,"2、登录用户：省级港口行政管理人员","用户登录->建设与经营管理子系统",null,null,"待办事务中出现港口经营理货申请的待办信息","2016/11/22 OK","杜青蔚","OK"]
["M04_UC0131",null,null,null,"进入待办","点击待办记录",null,"进入待办一览","2016/11/22 OK","杜青蔚","OK"]
["M04_UC0132",null,null,null,"处理待办事务","点击【办理】按钮",null,"进入待办一览详细页面","2016/11/22 OK","杜青蔚","OK"]
["M04_UC0133",null,null,null,"用户登录->建设与经营管理子系统->港口经营管理->港口经营许可管理->港口经营理货申请","港口经营理货申请记录后点击【办理】按钮",null,"进入港口经营理货申请页面","2016/11/21 OK","杜青蔚","OK"]
["M04_UC0134",null,null,null,"1.选择人员后提交","港口经营理货申请的新增和编辑页面，点击【提交】按钮",null,"提交成功，编辑和删除按钮消失\n流程状态显示为科室审查","2016/11/21 OK","杜青蔚","OK"]
["M04_UC0135",null,null,"3、登录用户：省级港口行政管理人员","用户登录->建设与经营管理子系统",null,null,"待办事务中出现港口经营理货申请的待办信息","2016/11/22 OK","杜青蔚",{"$f":"RIGHTB(I139,2)","v":"OK"}]
["M04_UC0136",null,null,null,"进入待办","点击待办记录",null,"进入待办一览","2016/11/22 OK","杜青蔚","OK"]
["M04_UC0137",null,null,null,"处理待办事务","点击【办理】按钮",null,"进入待办一览详细页面","2016/11/22 OK","杜青蔚","OK"]
["M04_UC0138",null,null,null,"用户登录->建设与经营管理子系统->港口经营管理->港口经营许可管理->港口经营理货申请","港口经营理货申请记录后点击【办理】按钮",null,"进入港口经营理货申请页面","2016/11/21 OK","杜青蔚","OK"]
["M04_UC0139",null,null,null,"1.科室审查","经营理货申请记录后点击【办理】按钮",null,"进入经营理货申请办理页面","2016/11/21 OK","杜青蔚","OK"]
["M04_UC0140",null,null,null,"2.退回","在经营理货申请办理页面选择人员填写科室审查意见，点击【退回】按钮",null,"退回成功，页面刷新\n流程历史中显示退回的信息\n流程步骤显示经办人受理\n退回到经办人受理阶段","2016/11/21 OK","杜青蔚",{"$f":"RIGHTB(I144,2)","v":"OK"}]
["M04_UC0141",null,null,null,"3.同意","在经营理货申请办理页面选择人员填写科室审查意见，点击【同意】按钮",null,"通过成功，页面刷新\n流程历史中显示科室审查同意的信息\n办理页面出现分管领导审批意见栏\n流程步骤显示分管领导审批","2016/11/21 OK","杜青蔚","OK"]
["M04_UC0142",null,null,"4、登录用户：省级港口行政管理人员","用户登录->建设与经营管理子系统",null,null,"待办事务中出现港口经营理货申请的待办信息","2016/11/22 OK","杜青蔚","OK"]
["M04_UC0143",null,null,null,"进入待办","点击待办记录",null,"进入待办一览","2016/11/22 OK","杜青蔚","OK"]
["M04_UC0144",null,null,null,"处理待办事务","点击【办理】按钮",null,"进入待办一览详细页面","2016/11/22 OK","杜青蔚","OK"]
["M04_UC0145",null,null,null,"用户登录->建设与经营管理子系统->港口经营管理->港口经营许可管理->港口经营理货申请","港口经营理货申请记录后点击【办理】按钮",null,"进入港口经营理货申请页面","2016/11/21 OK","杜青蔚","OK"]
["M04_UC0146",null,null,null,"1.分管领导审批","经营理货申请记录后点击【办理】按钮",null,"进入经营理货申请办理页面","2016/11/21 OK","杜青蔚","OK"]
["M04_UC0147",null,null,null,"2.退回","在经营理货申请办理页面填写分管领导审批意见，点击【退回】按钮",null,"退回成功，页面刷新\n流程历史中显示退回的信息\n流程步骤显示经办人受理\n退回到经办人受理阶段","2016/11/21 OK","杜青蔚","OK"]
["M04_UC0148",null,null,null,"3.同意","在经营理货申请办理页面填写分管领导审批意见，点击【同意】按钮",null,"通过成功，页面刷新\n流程历史中显示分管领导审批同意的信息\n办理页面出现领导批准意见栏","2016/11/21 OK","杜青蔚","OK"]
["M04_UC0149",null,null,"5、登录用户：省级港口行政管理人员","用户登录->建设与经营管理子系统",null,null,"待办事务中出现港口经营理货申请的待办信息","2016/11/22 OK","杜青蔚","OK"]
["M04_UC0150",null,null,null,"进入待办","点击待办记录",null,"进入待办一览","2016/11/22 OK","杜青蔚","OK"]
["M04_UC0151",null,null,null,"处理待办事务","点击【办理】按钮",null,"进入待办一览详细页面","2016/11/22 OK","杜青蔚","OK"]
["M04_UC0152",null,null,null,"用户登录->建设与经营管理子系统->港口经营管理->港口经营许可管理->港口经营理货申请","港口经营理货申请记录后点击【办理】按钮",null,"进入港口经营理货申请页面","2016/11/21 OK","杜青蔚","OK"]
["M04_UC0153",null,null,null,"1.领导批准","经营理货申请记录后点击【办理】按钮",null,"进入经营理货申请办理页面","2016/11/21 OK","杜青蔚","OK"]
["M04_UC0154",null,null,null,"2.退回","在经营理货申请办理页面填写领导批准意见，点击【退回】按钮",null,"退回成功，页面刷新\n流程历史中显示退回的信息\n流程步骤显示经办人受理\n退回到经办人受理阶段","2016/11/21 OK","杜青蔚","OK"]
["M04_UC0155",null,null,null,"3.同意","在经营理货申请办理页面填写领导批准意见，点击【同意】按钮",null,"通过成功，页面弹出‘准予行政许可决定书’\n流程历史中显示审批同意的信息\n流程状态显示为省局同意\n记录后出现【发证】按钮","2016/11/21 OK","杜青蔚","OK"]
["M04_UC0156",null,null,"6、登录用户：登录用户：省级港口行政管理人员","1.发证","在经营理货申请一览列表点击【发证】按钮",null,"跳转至许可证信息页面","2016/11/21 OK","杜青蔚","OK"]
["M04_UC0157",null,null,null,"2.在许可证信息页面\n上传许可证正反面图",null,null,"添加成功","2016/11/21 OK","杜青蔚","OK"]
["M04_UC0158",null,null,null,"3.发证","在许可证信息页面，点击【发证】按钮",null,"发证成功，页面刷新\n港口经营理货申请页面中发证按钮消失\n许可证信息页面新增该证信息","2016/11/21 OK","杜青蔚","OK"]
["M04_UC0159",null,"港口经营理货变更流程","1、登录用户：港口经营人","用户登录->建设与经营管理子系统->港口经营管理->港口经营许可管理->港口经营理货变更",null,null,"进入港口经营理货变更页面","2016/11/22 OK","杜青蔚","OK"]
["M04_UC0160",null,null,null,"1.输入相关内容、上传所需的材料附件",null,null,"添加理货变更成功","2016/11/22 OK","杜青蔚","OK"]
["M04_UC0161",null,null,null,"2.提交","港口经营理货变更的新增和编辑页面，点击【转报省局】按钮",null,"提交成功，编辑和删除按钮消失\n流程状态显示为转报省局","2016/11/22 OK","杜青蔚","OK"]
["M04_UC0162",null,null,null,"3.根据指定条件（单个或组合条件），完成查询功能",null,null,"查询出正确的结果集","2016/11/22 OK","杜青蔚","OK"]
["M04_UC0163",null,null,"2、登录用户：省级港口行政管理人员","用户登录->建设与经营管理子系统",null,null,"待办事务中出现港口经营理货变更的待办信息","2016/11/22 OK","杜青蔚","OK"]
["M04_UC0164",null,null,null,"进入待办","点击待办记录",null,"进入待办一览","2016/11/22 OK","杜青蔚",{"$f":"RIGHTB(I168,2)","v":"OK"}]
["M04_UC0165",null,null,null,"处理待办事务","点击【办理】按钮",null,"进入待办一览详细页面","2016/11/22 OK","杜青蔚","OK"]
["M04_UC0166",null,null,null,"用户登录->建设与经营管理子系统->港口经营管理->港口经营许可管理->港口经营理货变更","港口经营理货变更记录后点击【办理】按钮",null,"进入港口经营理货变更页面","2016/11/22 OK","杜青蔚","OK"]
["M04_UC0167",null,null,null,"1.选择人员后提交","港口经营理货变更的新增和编辑页面，点击【提交】按钮",null,"提交成功，编辑和删除按钮消失\n流程状态显示为科室审查","2016/11/22 OK","杜青蔚","OK"]
["M04_UC0168",null,null,"3、登录用户：省级港口行政管理人员","用户登录->建设与经营管理子系统",null,null,"待办事务中出现港口经营理货变更的待办信息","2016/11/22 OK","杜青蔚","OK"]
["M04_UC0169",null,null,null,"进入待办","点击待办记录",null,"进入待办一览","2016/11/22 OK","杜青蔚","OK"]
["M04_UC0170",null,null,null,"处理待办事务","点击【办理】按钮",null,"进入待办一览详细页面","2016/11/22 OK","杜青蔚","OK"]
["M04_UC0171",null,null,null,"用户登录->建设与经营管理子系统->港口经营管理->港口经营许可管理->港口经营理货变更","港口经营理货变更记录后点击【办理】按钮",null,"进入港口经营理货变更页面","2016/11/22 OK","杜青蔚","OK"]
["M04_UC0172",null,null,null,"1.科室审查","经营理货变更记录后点击【办理】按钮",null,"进入经营理货变更办理页面","2016/11/22 OK","杜青蔚","OK"]
["M04_UC0173",null,null,null,"2.退回","在经营理货变更办理页面选择人员填写科室审查意见，点击【退回】按钮",null,"退回成功，页面刷新\n流程历史中显示退回的信息\n流程步骤显示经办人受理\n退回到经办人受理阶段","2016/11/22 OK","杜青蔚","OK"]
["M04_UC0174",null,null,null,"3.同意","在经营理货变更办理页面选择人员填写科室审查意见，点击【同意】按钮",null,"通过成功，页面刷新\n流程历史中显示科室审查同意的信息\n办理页面出现分管领导审批意见栏\n流程步骤显示分管领导审批","2016/11/22 OK","杜青蔚","OK"]
["M04_UC0175",null,null,"4、登录用户：省级港口行政管理人员","用户登录->建设与经营管理子系统",null,null,"待办事务中出现港口经营理货变更的待办信息","2016/11/22 OK","杜青蔚","OK"]
["M04_UC0176",null,null,null,"进入待办","点击待办记录",null,"进入待办一览","2016/11/22 OK","杜青蔚","OK"]
["M04_UC0177",null,null,null,"处理待办事务","点击【办理】按钮",null,"进入待办一览详细页面","2016/11/22 OK","杜青蔚","OK"]
["M04_UC0178",null,null,null,"用户登录->建设与经营管理子系统->港口经营管理->港口经营许可管理->港口经营理货变更","港口经营理货变更记录后点击【办理】按钮",null,"进入港口经营理货变更页面","2016/11/22 OK","杜青蔚","OK"]
["M04_UC0179",null,null,null,"1.分管领导审批","经营理货变更记录后点击【办理】按钮",null,"进入经营理货变更办理页面","2016/11/22 OK","杜青蔚","OK"]
["M04_UC0180",null,null,null,"2.退回","在经营理货变更办理页面填写分管领导审批意见，点击【退回】按钮",null,"退回成功，页面刷新\n流程历史中显示退回的信息\n流程步骤显示经办人受理\n退回到经办人受理阶段","2016/11/22 OK","杜青蔚","OK"]
["M04_UC0181",null,null,null,"3.同意","在经营理货变更办理页面填写分管领导审批意见，点击【同意】按钮",null,"通过成功，页面刷新\n流程历史中显示分管领导审批同意的信息\n办理页面出现领导批准意见栏","2016/11/22 OK","杜青蔚","OK"]
["M04_UC0182",null,null,"5、登录用户：省级港口行政管理人员","用户登录->建设与经营管理子系统",null,null,"待办事务中出现港口经营理货变更的待办信息","2016/11/22 OK","杜青蔚","OK"]
["M04_UC0183",null,null,null,"进入待办","点击待办记录",null,"进入待办一览","2016/11/22 OK","杜青蔚","OK"]
["M04_UC0184",null,null,null,"处理待办事务","点击【办理】按钮",null,"进入待办一览详细页面","2016/11/22 OK","杜青蔚",{"$f":"RIGHTB(I188,2)","v":"OK"}]
["M04_UC0185",null,null,null,"用户登录->建设与经营管理子系统->港口经营管理->港口经营许可管理->港口经营理货变更","港口经营理货变更记录后点击【办理】按钮",null,"进入港口经营理货变更页面","2016/11/22 OK","杜青蔚","OK"]
["M04_UC0186",null,null,null,"1.领导批准","经营理货变更记录后点击【办理】按钮",null,"进入经营理货变更办理页面","2016/11/22 OK","杜青蔚","OK"]
["M04_UC0187",null,null,null,"2.退回","在经营理货变更办理页面填写领导批准意见，点击【退回】按钮",null,"退回成功，页面刷新\n流程历史中显示退回的信息\n流程步骤显示经办人受理\n退回到经办人受理阶段","2016/11/22 OK","杜青蔚","OK"]
["M04_UC0188",null,null,null,"3.同意","在经营理货变更办理页面填写领导批准意见，点击【同意】按钮",null,"通过成功，页面弹出‘准予行政许可决定书’\n流程历史中显示审批同意的信息\n流程状态显示为省局同意\n记录后出现【发证】按钮","2016/11/22 OK","杜青蔚","OK"]
["M04_UC0189",null,null,"6、登录用户：登录用户：省级港口行政管理人员","1.发证","在经营理货变更一览列表点击【发证】按钮",null,"跳转至许可证信息页面","2016/11/22 OK","杜青蔚","OK"]
["M04_UC0190",null,null,null,"2.在许可证信息页面\n上传许可证正反面图",null,null,"添加成功","2016/11/22 OK","杜青蔚","OK"]
["M04_UC0191",null,null,null,"3.发证","在许可证信息页面，点击【发证】按钮",null,"发证成功，页面刷新\n港口经营许可延续页面中发证按钮消失\n许可证信息页面新增该证信息","2016/11/22 OK","杜青蔚",{"$f":"RIGHTB(I195,2)","v":"OK"}]
["M04_UC0192",null,"港口经营理货延续流程","1、登录用户：港口经营人","用户登录->建设与经营管理子系统->港口经营管理->港口经营许可管理->港口经营理货延续",null,null,"进入港口经营理货延续页面","2016/11/22 OK","杜青蔚",{"$f":"RIGHTB(I196,2)","v":"OK"}]
["M04_UC0193",null,null,null,"1.输入相关内容、上传所需的材料附件",null,null,"添加理货变更成功","2016/11/22 OK","杜青蔚","OK"]
[{"$f":"A$2&\"_\"&\"UC0\"&(ROW()-4)","v":"M04_UC0194"},null,null,null,"2.提交","港口经营理货延续的新增和编辑页面，点击【转报省局】按钮",null,"提交成功，编辑和删除按钮消失\n流程状态显示为转报省局","2016/11/22 OK","杜青蔚","OK"]
["M04_UC0195",null,null,null,"3.根据指定条件（单个或组合条件），完成查询功能",null,null,"查询出正确的结果集","2016/11/22 OK","杜青蔚","OK"]
["M04_UC0196",null,null,"2、登录用户：省级港口行政管理人员","用户登录->建设与经营管理子系统",null,null,"待办事务中出现港口经营理货延续的待办信息","2016/11/22 OK","杜青蔚","OK"]
["M04_UC0197",null,null,null,"进入待办","点击待办记录",null,"进入待办一览","2016/11/22 OK","杜青蔚","OK"]
["M04_UC0198",null,null,null,"处理待办事务","点击【办理】按钮",null,"进入待办一览详细页面","2016/11/22 OK","杜青蔚","OK"]
["M04_UC0199",null,null,null,"用户登录->建设与经营管理子系统->港口经营管理->港口经营许可管理->港口经营理货延续","港口经营理货延续记录后点击【办理】按钮",null,"进入港口经营理货延续页面","2016/11/22 OK","杜青蔚","OK"]
["M04_UC0200",null,null,null,"1.选择人员后提交","港口经营理货延续的新增和编辑页面，点击【提交】按钮",null,"提交成功，编辑和删除按钮消失\n流程状态显示为科室审查","2016/11/22 OK","杜青蔚",{"$f":"RIGHTB(I204,2)","v":"OK"}]
["M04_UC0201",null,null,"3、登录用户：省级港口行政管理人员","用户登录->建设与经营管理子系统",null,null,"待办事务中出现港口经营理货延续的待办信息","2016/11/22 OK","杜青蔚","OK"]
["M04_UC0202",null,null,null,"进入待办","点击待办记录",null,"进入待办一览","2016/11/22 OK","杜青蔚","OK"]
["M04_UC0203",null,null,null,"处理待办事务","点击【办理】按钮",null,"进入待办一览详细页面","2016/11/22 OK","杜青蔚","OK"]
["M04_UC0204",null,null,null,"用户登录->建设与经营管理子系统->港口经营管理->港口经营许可管理->港口经营理货延续","港口经营理货延续记录后点击【办理】按钮",null,"进入港口经营理货延续页面","2016/11/22 OK","杜青蔚","OK"]
["M04_UC0205",null,null,null,"1.科室审查","经营理货延续记录后点击【办理】按钮",null,"进入经营理货延续办理页面","2016/11/22 OK","杜青蔚","OK"]
["M04_UC0206",null,null,null,"2.退回","在经营理货延续办理页面选择人员填写科室审查意见，点击【退回】按钮",null,"退回成功，页面刷新\n流程历史中显示退回的信息\n流程步骤显示经办人受理\n退回到经办人受理阶段","2016/11/22 OK","杜青蔚","OK"]
["M04_UC0207",null,null,null,"3.同意","在经营理货延续办理页面选择人员填写科室审查意见，点击【同意】按钮",null,"通过成功，页面刷新\n流程历史中显示科室审查同意的信息\n办理页面出现分管领导审批意见栏\n流程步骤显示分管领导审批","2016/11/22 OK","杜青蔚","OK"]
["M04_UC0208",null,null,"4、登录用户：省级港口行政管理人员","用户登录->建设与经营管理子系统",null,null,"待办事务中出现港口经营理货延续的待办信息","2016/11/22 OK","杜青蔚","OK"]
["M04_UC0209",null,null,null,"进入待办","点击待办记录",null,"进入待办一览","2016/11/22 OK","杜青蔚","OK"]
["M04_UC0210",null,null,null,"处理待办事务","点击【办理】按钮",null,"进入待办一览详细页面","2016/11/22 OK","杜青蔚","OK"]
["M04_UC0211",null,null,null,"用户登录->建设与经营管理子系统->港口经营管理->港口经营许可管理->港口经营理货延续","港口经营理货延续记录后点击【办理】按钮",null,"进入港口经营理货延续页面","2016/11/22 OK","杜青蔚","OK"]
["M04_UC0212",null,null,null,"1.分管领导审批","经营理货延续记录后点击【办理】按钮",null,"进入经营理货延续办理页面","2016/11/22 OK","杜青蔚","OK"]
["M04_UC0213",null,null,null,"2.退回","在经营理货延续办理页面填写分管领导审批意见，点击【退回】按钮",null,"退回成功，页面刷新\n流程历史中显示退回的信息\n流程步骤显示经办人受理\n退回到经办人受理阶段","2016/11/22 OK","杜青蔚","OK"]
["M04_UC0214",null,null,null,"3.同意","在经营理货延续办理页面填写分管领导审批意见，点击【同意】按钮",null,"通过成功，页面刷新\n流程历史中显示分管领导审批同意的信息\n办理页面出现领导批准意见栏","2016/11/22 OK","杜青蔚","OK"]
["M04_UC0215",null,null,"5、登录用户：省级港口行政管理人员","用户登录->建设与经营管理子系统",null,null,"待办事务中出现港口经营理货延续的待办信息","2016/11/22 OK","杜青蔚","OK"]
["M04_UC0216",null,null,null,"进入待办","点击待办记录",null,"进入待办一览","2016/11/22 OK","杜青蔚","OK"]
["M04_UC0217",null,null,null,"处理待办事务","点击【办理】按钮",null,"进入待办一览详细页面","2016/11/22 OK","杜青蔚",{"$f":"RIGHTB(I221,2)","v":"OK"}]
["M04_UC0218",null,null,null,"用户登录->建设与经营管理子系统->港口经营管理->港口经营许可管理->港口经营理货延续","港口经营理货延续记录后点击【办理】按钮",null,"进入港口经营理货延续页面","2016/11/22 OK","杜青蔚","OK"]
["M04_UC0219",null,null,null,"1.领导批准","经营理货延续记录后点击【办理】按钮",null,"进入经营理货延续办理页面","2016/11/22 OK","杜青蔚","OK"]
["M04_UC0220",null,null,null,"2.退回","在经营理货延续办理页面填写领导批准意见，点击【退回】按钮",null,"退回成功，页面刷新\n流程历史中显示退回的信息\n流程步骤显示经办人受理\n退回到经办人受理阶段","2016/11/22 OK","杜青蔚","OK"]
["M04_UC0221",null,null,null,"3.同意","在经营理货延续办理页面填写领导批准意见，点击【同意】按钮",null,"通过成功，页面弹出‘准予行政许可决定书’\n流程历史中显示审批同意的信息\n流程状态显示为省局同意\n记录后出现【发证】按钮","2016/11/22 OK","杜青蔚","OK"]
["M04_UC0222",null,null,"6、登录用户：登录用户：省级港口行政管理人员","1.发证","在经营理货延续一览列表点击【发证】按钮",null,"跳转至许可证信息页面","2016/11/22 OK","杜青蔚","OK"]
["M04_UC0223",null,null,null,"2.在许可证信息页面\n上传许可证正反面图",null,null,"添加成功","2016/11/22 OK","杜青蔚","OK"]
["M04_UC0224",null,null,null,"3.发证","在许可证信息页面，点击【发证】按钮",null,"发证成功，页面刷新\n港口经营许可延续页面中发证按钮消失\n许可证信息页面新增该证信息","2016/11/22 OK","杜青蔚",{"$f":"RIGHTB(I228,2)","v":"OK"}]

{"sheet":"监督检查管理流程","index":4,"n_rows":30,"n_cols":12,"rows_kept":30,"cut":false,"hidden":false,"merged":[[0,1,0,2],[0,3,0,4],[1,1,1,2],[1,3,1,4],[4,1,29,1],[4,2,16,2],[17,2,29,2]]}
["编号","场景",null,"概要",{"$nulls":4},"前提"]
["M05","监督检查管理流程",{"$nulls":6},"1.关联画面及功能正常"]
[]
["编号","测试功能","测试对象","环境和数据条件","操作步骤","测试分支","分支明细","预想结果","判定履历","担当者","最新結果","BUG票ID"]
[{"$f":"A$2&\"_\"&\"UC0\"&(ROW()-4)","v":"M05_UC01"},"监督检查管理","港口经营监督检查地市流程","1、登录用户：地市级港口行政管理部门管理员","用户登录->建设与经营管理子系统->港口经营管理->监督检查管理->港口经营监督检查",null,null,"进入港口经营监督检查页面","2016/11/15 OK","杜青蔚",{"$f":"RIGHTB(I5,2)","v":"OK"}]
[{"$f":"A$2&\"_\"&\"UC0\"&(ROW()-4)","v":"M05_UC02"},null,null,null,"1.填写相关内容\n上传所需的材料附件",null,null,"添加成功","2016/11/15 OK","杜青蔚",{"$f":"RIGHTB(I6,2)","v":"OK"}]
["M05_UC03",null,null,null,"2.提交整改","港口经营监督检查新增和编辑页面，点击【提交】按钮",null,"提交成功，编辑按钮消失，出现流程历史按钮\n流程历史中显示提交的信息\n流程步骤显示行政人员提交整改","2016/11/15 OK","杜青蔚","OK"]
["M05_UC04",null,null,null,"3.根据指定条件（单个或组合条件），完成查询功能",null,null,"查询出正确的结果集","2016/11/15 OK","杜青蔚","OK"]
["M05_UC05",null,null,"2、登录用户：港口经营人","用户登录->建设与经营管理子系统",null,null,"待办事务中出现监督检查的待办信息","2016/11/15 OK","杜青蔚","OK"]
["M05_UC06",null,null,null,"进入待办","点击待办记录",null,"进入待办一览","2016/11/15 OK","杜青蔚","OK"]
["M05_UC07",null,null,null,"处理待办事务","点击【办理】按钮",null,"进入待办一览详细页面","2016/11/15 OK","杜青蔚","OK"]
["M05_UC08",null,null,null,"用户登录->建设与经营管理子系统->港口经营管理->监督检查管理->港口经营监督检查",null,null,"进入港口经营监督检查页面","2016/11/15 OK","杜青蔚","OK"]
["M05_UC09",null,null,null,"1.整改确认","港口经营监督检查记录后点击【办理】按钮",null,"进入港口经营监督检查办理页面","2016/11/15 OK","杜青蔚","OK"]
["M05_UC010",null,null,null,"2.同意","在港口经营监督检查办理页面填写整改后附件说明、整改后投资金额，点击【同意】按钮",null,"通过成功，页面刷新，办理按钮消失\n流程历史中显示经营人同意的信息\n流程状态显示为行政人员审核","2016/11/15 OK","杜青蔚","OK"]
["M05_UC011",null,null,"3、登录用户：地市级港口行政管理部门管理员","1.审核","港口经营监督检查记录后点击【办理】按钮",null,"进入监督检查办理页面","2016/11/22 OK","杜青蔚","OK"]
["M05_UC012",null,null,null,"2.退回","在港口经营监督检查办理页面点击【退回】按钮",null,"退回成功，页面刷新\n流程历史中显示退回的信息\n流程步骤显示经营人确认\n退回到经营人重新填写整改情况","2016/11/22 OK","杜青蔚","OK"]
["M05_UC013",null,null,null,"3.同意","在港口经营监督检查办理页面点击【同意】按钮",null,"通过成功，页面刷新\n流程历史中显示审核同意的信息","2016/11/22 OK","杜青蔚","OK"]
["M05_UC014",null,"港口经营监督检查省厅流程","1、登录用户：省级港口行政管理部门管理员","用户登录->建设与经营管理子系统->港口经营管理->监督检查管理->港口经营监督检查",null,null,"进入港口经营监督检查页面","2016/11/22 OK","杜青蔚","OK"]
["M05_UC015",null,null,null,"1.填写相关内容\n上传所需的材料附件",null,null,"添加成功","2016/11/22 OK","杜青蔚","OK"]
["M05_UC016",null,null,null,"2.下发整改","港口经营监督检查新增和编辑页面，点击【下发】按钮",null,"下发成功，编辑按钮消失\n流程状态显示已下发地市","2016/11/22 OK","杜青蔚","OK"]
["M05_UC017",null,null,null,"3.根据指定条件（单个或组合条件），完成查询功能",null,null,"查询出正确的结果集","2016/11/22 OK","杜青蔚","OK"]
["M05_UC018",null,null,"2、登录用户：地市级港口行政管理部门管理员","1.审核","港口经营监督检查记录后点击【编辑】按钮",null,"进入监督检查编辑页面","2016/11/22 OK","杜青蔚","OK"]
["M05_UC019",null,null,null,"2.提交","港口经营监督检查编辑页面点击【提交】按钮",null,"通过成功，页面刷新，编辑和删除按钮消失\n流程历史中显示行政人员提交整改的信息\n流程状态显示为经营人确认","2016/11/22 OK","杜青蔚","OK"]
["M05_UC020",null,null,"3、登录用户：港口经营人","用户登录->建设与经营管理子系统->港口经营管理->监督检查管理->港口经营监督检查",null,null,"进入港口经营监督检查页面","2016/11/22 OK","杜青蔚","OK"]
["M05_UC021",null,null,null,"1.整改确认","港口经营监督检查记录后点击【办理】按钮",null,"进入港口经营监督检查办理页面","2016/11/22 OK","杜青蔚","OK"]
["M05_UC022",null,null,null,"2.同意","在港口经营监督检查办理页面填写目前状态、整改后附件说明、整改后投资金额，点击【同意】按钮",null,"通过成功，页面刷新，办理按钮消失\n流程历史中显示经营人确认的信息\n流程状态显示为行政人员审核","2016/11/22 OK","杜青蔚","OK"]
["M05_UC023",null,null,"4、登录用户：地市级港口行政管理部门管理员","1.审核","港口经营监督检查记录后点击【办理】按钮",null,"进入监督检查办理页面","2016/11/22 OK","杜青蔚",{"$f":"RIGHTB(I27,2)","v":"OK"}]
["M05_UC024",null,null,null,"2.同意","港口经营监督检查编辑页面点击【同意】按钮",null,"通过成功，页面刷新，办理按钮消失\n流程历史中显示行政人员审核的信息","2016/11/22 OK","杜青蔚","OK"]
["M05_UC025",null,null,null,"3.退回","港口经营监督检查编辑页面点击【退回】按钮",null,"退回成功，页面刷新，办理按钮消失\n流程历史中显示退回的信息\n流程状态显示为经营人确认","2016/11/22 OK","杜青蔚","OK"]
["M05_UC026",null,null,"5、登录用户：省级港口行政管理部门管理员","1.查看","港口经营监督检查编辑页面点击【查看】按钮",null,"监督检查的流程状态显示为地市已同步到省","2016/11/22 OK","杜青蔚","OK"]

{"sheet":"港口运行统计与分析","index":5,"n_rows":54,"n_cols":12,"rows_kept":54,"cut":false,"hidden":false,"merged":[[0,1,0,2],[0,3,0,4],[1,1,1,2],[1,3,1,4],[4,1,53,1],[4,2,25,2],[26,2,29,2],[30,2,33,2],[34,2,37,2],[38,2,41,2],[42,2,45,2],[46,2,49,2],[50,2,53,2]]}
["编号","场景",null,"概要"]
["M06","港口运行统计与分析",{"$nulls":6},"1.关联画面及功能正常"]
[]
["编号","测试功能","测试对象","环境和数据条件","操作步骤","测试分支","分支明细","预想结果","判定履历","担当者","最新結果","BUG票ID"]
[{"$f":"A$2&\"_\"&\"UC0\"&(ROW()-4)","v":"M06_UC01"},"港口运行统计与分析","港口单船作业申报","1、登录用户：港口经营人","用户登录->建设与经营管理子系统->船港货信息管理->港口单船作业申报",null,null,"进入港口单船作业申报页面","2016/11/16 OK","杜青蔚",{"$f":"RIGHTB(I5,2)","v":"OK"}]
["M06_UC02",null,null,null,"1.新增港口单船作业申报",null,null,"保存成功，页面刷新","2016/11/16 OK","杜青蔚","OK"]
["M06_UC03",null,null,null,"2.维护港口单船作业申报",null,null,"维护成功，页面刷新","2016/11/16 OK","杜青蔚","OK"]
["M06_UC04",null,null,null,"3.提交",null,null,"提交成功，编辑和删除按钮消失，出现流程历史按钮\n流程历史中显示提交的信息\n流程步骤显示申请\n当前状态显示已提交","2016/11/16 OK","杜青蔚","OK"]
["M06_UC05",null,null,null,"4.根据指定条件（单个或组合条件），完成查询功能",null,null,"查询出正确的结果集","2016/11/16 OK","杜青蔚","OK"]
["M06_UC06",null,null,"2、登录用户：地市级港口行政管理部门管理员","用户登录->建设与经营管理子系统",null,null,"待办事务中出现单船申报的待办信息","2016/11/16 OK","杜青蔚","OK"]
["M06_UC07",null,null,null,"进入待办","点击待办记录",null,"进入待办一览","2016/11/16 OK","杜青蔚","OK"]
["M06_UC08",null,null,null,"处理待办事务","点击【办理】按钮",null,"进入待办一览详细页面","2016/11/16 OK","杜青蔚","OK"]
["M06_UC09",null,null,null,"用户登录->建设与经营管理子系统->船港货信息管理->港口单船作业申报",null,null,"进入港口单船作业申报页面","2016/11/16 OK","杜青蔚","OK"]
["M06_UC010",null,null,null,"1.审核","港口单船作业申报记录后点击【办理】按钮",null,"进入港口单船作业申报办理页面","2016/11/16 OK","杜青蔚","OK"]
[{"$f":"A$2&\"_\"&\"UC0\"&(ROW()-4)","v":"M06_UC011"},null,null,null,"2.退回","在港口单船作业申报办理页面填写审核意见，点击【退回】按钮",null,"退回成功，页面刷新\n流程历史中显示退回的信息\n流程步骤显示审查\n退回到申请阶段\n当前状态显示审核未通过","2016/11/16 OK","杜青蔚","OK"]
[{"$f":"A$2&\"_\"&\"UC0\"&(ROW()-4)","v":"M06_UC012"},null,null,null,"3.同意","在港口单船作业申报办理页面填写审核意见，点击【同意】按钮",null,"通过成功，页面刷新\n流程历史中显示材料审查同意的信息\n当前状态显示审核通过","2016/11/16 OK","杜青蔚","OK"]
[{"$f":"A$2&\"_\"&\"UC0\"&(ROW()-4)","v":"M06_UC013"},null,null,"1、登录用户：港口经营人","用户登录->建设与经营管理子系统->港口运行统计与分析->港口作业申报月报表",null,null,"进入港口作业申报月报表页面","2016/11/16 OK","杜青蔚",{"$f":"RIGHTB(I17,2)","v":"OK"}]
[{"$f":"A$2&\"_\"&\"UC0\"&(ROW()-4)","v":"M06_UC014"},null,null,null,"1.新增港口作业申报月报信息",null,null,"保存成功，页面刷新","2016/11/16 OK","杜青蔚",{"$f":"RIGHTB(I18,2)","v":"OK"}]
["M06_UC015",null,null,null,"2.维护港口作业申报月报信息",null,null,"维护成功，页面刷新","2016/11/16 OK","杜青蔚","OK"]
["M06_UC016",null,null,null,"3.根据指定条件（单个或组合条件），完成查询功能",null,null,"查询出正确的结果集","2016/11/16 OK","杜青蔚","OK"]
["M06_UC017",null,null,"2、登录用户：地市级港口行政管理部门管理员","用户登录->建设与经营管理子系统->港口运行统计与分析->港口作业申报月报表",null,null,"进入港口作业申报月报表页面","2016/11/17 OK","杜青蔚","OK"]
["M06_UC018",null,null,null,"1. 查看港口作业申报月报信息",null,null,"查看正确","2016/11/17 OK","杜青蔚","OK"]
["M06_UC019",null,null,null,"2.根据指定条件（单个或组合条件），完成查询功能",null,null,"查询出正确的结果集","2016/11/17 OK","杜青蔚","OK"]
["M06_UC020",null,null,"3、登录用户：省级港口行政管理部门管理员","用户登录->建设与经营管理子系统->港口运行统计与分析->港口作业申报月报表",null,null,"进入港口作业申报月报表页面","2016/11/22 OK","杜青蔚","OK"]
["M06_UC021",null,null,null,"1. 根据指定条件（单个或组合条件），完成查询功能",null,null,"数据同步后，查询出正确的结果集","2016/11/22 OK","杜青蔚","OK"]
["M06_UC022",null,null,null,"2. 查看港口作业申报月报信息",null,null,"查看正确","2016/11/22 OK","杜青蔚","OK"]
["M06_UC023",null,"单船吞吐量分析","1、登录用户：地市级港口行政管理部门管理员","用户登录->建设与经营管理子系统->港口运行统计与分析->单船吞吐量分析",null,null,"进入单船吞吐量分析页面","2016/11/16 OK","杜青蔚","OK"]
["M06_UC024",null,null,null,"根据指定条件（单个或组合条件），完成统计功能",null,null,"查询出正确的结果集\n单船吞吐量统计图显示正确\n单船吞吐量统计表显示正确","2016/11/16 OK","杜青蔚","OK"]
["M06_UC025",null,null,"2、登录用户：省级港口行政管理部门管理员","用户登录->建设与经营管理子系统->港口运行统计与分析->单船吞吐量分析",null,null,"进入单船吞吐量分析页面","2016/11/16 OK","杜青蔚",{"$f":"RIGHTB(I29,2)","v":"OK"}]
["M06_UC026",null,null,null,"根据指定条件（单个或组合条件），完成统计功能",null,null,"数据同步后，查询出正确的结果集\n单船吞吐量统计图显示正确\n单船吞吐量统计表显示正确","2016/11/22 OK","杜青蔚","OK"]
["M06_UC027",null,"港口吞吐量分析","1、登录用户：地市级港口行政管理部门管理员","用户登录->建设与经营管理子系统->港口运行统计与分析->港口吞吐量分析",null,null,"进入港口吞吐量分析页面","2016/11/16 OK","杜青蔚","OK"]
["M06_UC028",null,null,null,"根据指定条件（单个或组合条件），完成统计功能",null,null,"查询出正确的结果集\n港口吞吐量发展分析图显示正确\n港口吞吐量统计表显示正确","2016/11/16 OK","杜青蔚","OK"]
["M06_UC029",null,null,"2、登录用户：省级港口行政管理部门管理员","用户登录->建设与经营管理子系统->港口运行统计与分析->港口吞吐量分析",null,null,"进入港口吞吐量分析页面","2016/11/16 OK","杜青蔚",{"$f":"RIGHTB(I33,2)","v":"OK"}]
["M06_UC030",null,null,null,"根据指定条件（单个或组合条件），完成统计功能",null,null,"数据同步后，查询出正确的结果集\n港口吞吐量发展分析图显示正确\n港口吞吐量统计表显示正确","2016/11/22 OK","杜青蔚","OK"]
["M06_UC031",null,"港口基础设施建设分析","1、登录用户：地市级港口行政管理部门管理员","用户登录->建设与经营管理子系统->港口运行统计与分析->港口基础设施建设分析",null,null,"进入港口基础设施建设分析页面","2016/11/16 OK","杜青蔚","OK"]
["M06_UC032",null,null,null,"根据指定条件（单个或组合条件），完成统计功能",null,null,"查询出正确的结果集\n项目投资统计图显示正确\n投资统计表显示正确","2016/11/16 OK","杜青蔚","OK"]
["M06_UC033",null,null,"2、登录用户：省级港口行政管理部门管理员","用户登录->建设与经营管理子系统->港口运行统计与分析->港口基础设施建设分析",null,null,"进入港口基础设施建设分析页面","2016/11/16 OK","杜青蔚",{"$f":"RIGHTB(I37,2)","v":"OK"}]
["M06_UC034",null,null,null,"根据指定条件（单个或组合条件），完成统计功能",null,null,"数据同步后，查询出正确的结果集\n项目投资统计图显示正确\n投资统计表显示正确","2016/11/22 OK","杜青蔚","OK"]
["M06_UC035",null,"港口岸线利用效率分析\n--区域同类型码头量能比","1、登录用户：地市级港口行政管理部门管理员","用户登录->建设与经营管理子系统->港口运行统计与分析->港口岸线利用效率分析\n->区域同类型码头量能比",null,null,"进入区域同类型码头量能比页面","2016/11/17 OK","杜青蔚","OK"]
["M06_UC036",null,null,null,"根据指定条件（单个或组合条件），完成统计功能",null,null,"统计出正确的结果集","2016/11/17 OK","杜青蔚","OK"]
["M06_UC037",null,null,"2、登录用户：省级港口行政管理部门管理员","用户登录->建设与经营管理子系统->港口运行统计与分析->港口岸线利用效率分析\n->区域同类型码头量能比",null,null,"进入区域同类型码头量能比页面","2016/11/17 OK","杜青蔚",{"$f":"RIGHTB(I41,2)","v":"OK"}]
["M06_UC038",null,null,null,"根据指定条件（单个或组合条件），完成统计功能",null,null,"数据同步后，统计出正确的结果集","2016/11/22 OK","杜青蔚",{"$f":"RIGHTB(I42,2)","v":"OK"}]
["M06_UC039",null,"港口岸线利用效率分析\n--单位泊位岸线吞吐量","1、登录用户：地市级港口行政管理部门管理员","用户登录->建设与经营管理子系统->港口运行统计与分析->港口岸线利用效率分析\n->单位泊位岸线吞吐量",null,null,"进入单位泊位岸线吞吐量页面","2016/11/17 OK","杜青蔚","OK"]
["M06_UC040",null,null,null,"根据指定条件（单个或组合条件），完成统计功能",null,null,"统计出正确的结果集","2016/11/17 OK","杜青蔚","OK"]
["M06_UC041",null,null,"2、登录用户：省级港口行政管理部门管理员","用户登录->建设与经营管理子系统->港口运行统计与分析->港口岸线利用效率分析\n->单位泊位岸线吞吐量",null,null,"进入单位泊位岸线吞吐量页面","2016/11/17 OK","杜青蔚",{"$f":"RIGHTB(I45,2)","v":"OK"}]
["M06_UC042",null,null,null,"根据指定条件（单个或组合条件），完成统计功能",null,null,"数据同步后，统计出正确的结果集","2016/11/22 OK","杜青蔚","OK"]
["M06_UC043",null,"港口岸线利用效率分析\n--港口岸线有效利用率","1、登录用户：地市级港口行政管理部门管理员","用户登录->建设与经营管理子系统->港口运行统计与分析->港口岸线利用效率分析\n->港口岸线有效利用率",null,null,"进入港口岸线有效利用率页面","2016/11/17 OK","杜青蔚","OK"]
["M06_UC044",null,null,null,"根据指定条件（单个或组合条件），完成统计功能",null,null,"统计出正确的结果集","2016/11/17 OK","杜青蔚","OK"]
["M06_UC045",null,null,"2、登录用户：省级港口行政管理部门管理员","用户登录->建设与经营管理子系统->港口运行统计与分析->港口岸线利用效率分析\n->港口岸线有效利用率",null,null,"进入港口岸线有效利用率页面","2016/11/17 OK","杜青蔚",{"$f":"RIGHTB(I49,2)","v":"OK"}]
["M06_UC046",null,null,null,"根据指定条件（单个或组合条件），完成统计功能",null,null,"统计出正确的结果集","2016/11/22 OK","杜青蔚","OK"]
["M06_UC047",null,"航线航班统计","1、登录用户：地市级港口行政管理部门管理员","用户登录->建设与经营管理子系统->港口运行统计与分析->航线航班统计",null,null,"进入航线航班统计页面","2016/11/22 OK","杜青蔚",{"$f":"RIGHTB(I51,2)","v":"OK"}]
["M06_UC048",null,null,null,"根据指定条件（单个或组合条件），完成统计功能",null,null,"统计出正确的结果集","2016/11/22 OK","杜青蔚","OK"]
["M06_UC049",null,null,"2、登录用户：省级港口行政管理部门管理员","用户登录->建设与经营管理子系统->港口运行统计与分析->航线航班统计",null,null,"进入航线航班统计页面","2016/11/22 OK","杜青蔚","OK"]
["M06_UC050",null,null,null,"根据指定条件（单个或组合条件），完成统计功能",null,null,"统计出正确的结果集","2016/11/22 OK","杜青蔚","OK"]

{"sheet":"公共服务信息管理","index":6,"n_rows":35,"n_cols":12,"rows_kept":35,"cut":false,"hidden":false,"merged":[[14,2,32,2],[0,1,0,2],[0,3,0,4],[1,1,1,2],[1,3,1,4],[4,2,13,2],[4,1,34,1],[33,2,34,2]]}
["编号","场景",null,"概要"]
["M07","公共服务信息管理",{"$nulls":6},"1.关联画面及功能正常"]
[]
["编号","测试功能","测试对象","环境和数据条件","操作步骤","测试分支","分支明细","预想结果","判定履历","担当者","最新結果","BUG票ID"]
[{"$f":"A$2&\"_\"&\"UC0\"&(ROW()-4)","v":"M07_UC01"},"公共服务信息管理","航线航班管理","1、登录用户：港口经营人","用户登录->建设与经营管理子系统->公共服务信息管理->航线航班管理",null,null,"进入航线航班管理页面","2016/11/17 OK","杜青蔚",{"$f":"RIGHTB(I5,2)","v":"OK"}]
[{"$f":"A$2&\"_\"&\"UC0\"&(ROW()-4)","v":"M07_UC02"},null,null,null,"1.新增航线航班管理信息",null,null,"保存成功，页面刷新","2016/11/17 OK","杜青蔚",{"$f":"RIGHTB(I6,2)","v":"OK"}]
["M07_UC03",null,null,null,"2.维护航线航班管理信息",null,null,"维护成功，页面刷新","2016/11/17 OK","杜青蔚","OK"]
["M07_UC04",null,null,null,"3.根据指定条件（单个或组合条件），完成查询功能",null,null,"查询出正确的结果集","2016/11/17 OK","杜青蔚","OK"]
["M07_UC05",null,null,"2、登录用户：地市级港口行政管理部门管理员","用户登录->建设与经营管理子系统->公共服务信息管理->航线航班管理",null,null,"进入航线航班管理页面","2016/11/17 OK","杜青蔚",{"$f":"RIGHTB(I9,2)","v":"OK"}]
["M07_UC06",null,null,null,"1.新增航线航班管理信息",null,null,"保存成功，页面刷新","2016/11/17 OK","杜青蔚",{"$f":"RIGHTB(I10,2)","v":"OK"}]
["M07_UC07",null,null,null,"2.维护航线航班管理信息",null,null,"维护成功，页面刷新","2016/11/17 OK","杜青蔚","OK"]
["M07_UC08",null,null,null,"3.根据指定条件（单个或组合条件），完成查询功能",null,null,"查询出正确的结果集","2016/11/17 OK","杜青蔚","OK"]
["M07_UC09",null,null,"3、登录用户：省级港口行政管理部门管理员","用户登录->建设与经营管理子系统->公共服务信息管理->航线航班管理",null,null,"进入航线航班管理页面","2016/11/17 OK","杜青蔚","OK"]
["M07_UC010",null,null,null,"1. 根据指定条件（单个或组合条件），完成查询功能",null,null,"数据同步后，查询出正确的结果集","2016/11/17 OK","杜青蔚","OK"]
["M07_UC011",null,"通知公告","1、登录用户：港口经营人","用户登录->建设与经营管理子系统->公共服务信息管理->通知公告",null,null,"进入通知公告页面","2016/11/17 OK","杜青蔚","OK"]
["M07_UC012",null,null,null,"1.新增航线航班管理信息",null,null,"保存成功，页面刷新","2016/11/17 OK","杜青蔚","OK"]
["M07_UC013",null,null,null,"2.提交","通知公告新增和编辑页面，点击【提交】按钮",null,"提交成功，审核栏出现办理按钮\n","2016/11/17 OK","杜青蔚","OK"]
["M07_UC014",null,null,null,"3.根据指定条件（单个或组合条件），完成查询功能",null,null,"查询出正确的结果集","2016/11/17 OK","杜青蔚","OK"]
["M07_UC015",null,null,"2、登录用户：地市级港口行政管理部门管理员","用户登录->建设与经营管理子系统->公共服务信息管理->通知公告",null,null,"进入通知公告页面","2016/11/17 OK","杜青蔚","OK"]
["M07_UC016",null,null,null,"1.新增通知公告信息",null,null,"保存成功，页面刷新","2016/11/17 OK","杜青蔚",{"$f":"RIGHTB(I20,2)","v":"OK"}]
["M07_UC017",null,null,null,"2.维护通知公告信息",null,null,"维护成功，页面刷新","2016/11/17 OK","杜青蔚","OK"]
["M07_UC018",null,null,null,"3.提交","通知公告新增和编辑页面，点击【提交】按钮",null,"提交成功，审核栏出现办理按钮\n","2016/11/17 OK","杜青蔚","OK"]
["M07_UC019",null,null,null,"4.根据指定条件（单个或组合条件），完成查询功能",null,null,"查询出正确的结果集","2016/11/17 OK","杜青蔚","OK"]
["M07_UC020",null,null,"3、登录用户：地市级港口行政管理部门管理员","用户登录->建设与经营管理子系统->公共服务信息管理->通知公告",null,null,"进入通知公告页面","2016/11/17 OK","杜青蔚","OK"]
["M07_UC021",null,null,null,"1.审核","通知公告记录后点击【办理】按钮",null,"进入通知公告办理页面","2016/11/17 OK","杜青蔚","OK"]
["M07_UC022",null,null,null,"2.退回","在通知公告办理页面填写审核意见，选择行政人员和经营人，点击【退回】按钮",null,"退回成功，页面刷新\n退回到","2016/11/17 OK","杜青蔚","OK"]
["M07_UC023",null,null,null,"3.同意","在通知公告办理页面填写审批意见，选择行政人员和经营人点击【同意】按钮",null,"通过成功，页面刷新","2016/11/17 OK","杜青蔚","OK"]
["M07_UC024",null,null,null,"4.根据指定条件（单个或组合条件），完成查询功能",null,null,"查询出正确的结果集","2016/11/17 OK","杜青蔚","OK"]
["M07_UC025",null,null,"4、登录用户：省级港口行政管理部门管理员","用户登录->建设与经营管理子系统->公共服务信息管理->通知公告",null,null,"进入通知公告页面","2016/11/17 OK","杜青蔚","OK"]
["M07_UC026",null,null,null,"1.新增通知公告信息",null,null,"保存成功，页面刷新\n公告状态显示为保存","2016/11/17 OK","杜青蔚","OK"]
["M07_UC027",null,null,null,"2.维护通知公告信息",null,null,"维护成功，页面刷新","2016/11/17 OK","杜青蔚","OK"]
["M07_UC028",null,null,null,"3.发布","在通知公告新增和编辑页面，点击【发布】按钮",null,"发布成功，页面刷新\n【编辑】和【删除】按钮消失，出现【阅读详情】按钮\n公告状态显示为发布","2016/11/17 OK","杜青蔚","OK"]
["M07_UC029",null,null,null,"4. 根据指定条件（单个或组合条件），完成查询功能",null,null,"数据同步后，查询出正确的结果集","2016/11/17 OK","杜青蔚","OK"]
["M07_UC030",null,"监督提醒","1、登录用户：省级港口行政管理部门管理员","用户登录->建设与经营管理子系统->公共服务信息管理->监督提醒",null,null,"进入监督提醒页面","2016/11/18 OK","杜青蔚",{"$f":"RIGHTB(I34,2)","v":"OK"}]
["M07_UC031",null,null,null,"1.新增监督提醒信息",null,null,"保存成功，页面刷新","2016/11/18 OK","杜青蔚","OK"]